Workbook

Sheet Accueil
B1: Cliquez sur les images suivantes | E1: Prix des aliments | S1: v180411
D8: Calculer le prix du mais ensilage sur pied | O8: Calculer la densité d'un silo de mais ensilage (kg MS / M3)
D9: selon le prix de parité du mais grain
D12: Grille prix du mais ensilage sur pied (même calcul)
D16: Prix des fourrages (herbe) | O16: Calculer la densité d'un silo d'ensilage d'herbe (kg MS / M3)
D17: selon la parité paille blé soja
D20: Prix de parité aliment fermier - aliments concentrés
D23: Prix de parité aliments simples et équivalence de poids

Sheet Mais
B2: Calculer le prix du mais ensilage sur pied | S2: Rdt grain | T2: Qx de grain / TMS | Y2: oui
F3: Calcul du prix selon la parité grain | S3: 35 | T3: 4.92 | Y3: non
S4: 40 | T4: 5
S5: 45 | T5: 5.08
S6: 50 | T6: 5.16
S7: 55 | T7: 5.25
S8: 60 | T8: 5.37
S9: 65 | T9: 5.49
S10: 70 | T10: 5.6
S11: 75 | T11: 5.68
S12: 80 | T12: 5.76
S13: 85 | T13: 5.85
B14: rendement en qx du maïs grain | C14: Prix grain / T | E14: Coût récolte - transport - broyage paille / ha | F14: Valeur /ha des tiges et feuilles | H14: Coefficient de conversion quintaux de grains / Tonne Matière Sèche | J14: cout référence +- 25% pour 80 Qx | K14: rdt référence: | L14: Coût récolte référence: | M14: Valeur (agro + alimentaire) / 2 | S14: 90 | T14: 5.9 | Y14: Pour récolter 1 ha de maïs à 80 qx:sans MO
S15: 95 | T15: 5.95
B16: 100 | C16: 100 | E16: =((B16-K16)*1.25)+L16 -> 185 | F16: =VLOOKUP(B16/10,VAlimentaire,4)*M16 -> 160 | H16: =VLOOKUP(B16,Table5,2,TRUE) -> 6 | K16: 80 | L16: 160 | M16: 24 | S16: 100 | T16: 6 | Y16: Battage par ha | Z16: 90 | AB16: Un peu plus que tarif mat pour tenir compte du fuel plus cher et de certain qui récolte en eta ( MB et broyeur sous bec ) | AD16: Un peu plus que tarif mat pour tenir compte du fuel plus cher et de certain qui récolte en eta ( MB et broyeur sous bec )
D17: Prix T MS sur pied : | F17: =((B16*C16/10)-E16+F16)/((B16)/H16) -> 58.5 | H17: =IF(E10="francs","F","€") -> € | I17: soit : | J17: =F17*6.55957 -> 383.734845 | S17: 105 | T17: 6.05 | Y17: remorque grain 1 tour | Z17: 4.95 | AB17: Tarif mat 2006 | AD17: Tarif mat 2006
B18: =B16*0.85*1.5/10 -> 12.75 | C18: =C16/0.85/1.5 -> 78.43137255
D19: Prix TMS mais épi: | F19: =((B18*C18)+(-E16+(F16*0.6)))/B18 -> 71.45098039 | H19: =IF(E9="francs","F","€") -> €
S20: 110 | T20: 6.1 | Y20: tracteur grain 120 cv 1 ha | Z20: 23.8 | AB20: Tarif mat 2006 | AD20: Tarif mat 2006
C21: récolte à la charge de l'acheteur | S21: 115 | T21: 6.15 | Y21: broyeur 3,2 m | Z21: 11.7 | AB21: Tarif mat 2006 | AD21: Tarif mat 2006
B22: Exemple: pour un rendement grain de | E22: =B16 -> 100 | F22: et un prix de | H22: =C16 -> 100 | I22: sec payé au moment de la récolte, | S22: 120 | T22: 6.2 | Y22: tracteur broyeur 120 cv 0,75 ha | Z22: 17.85 | AB22: Tarif mat 2006 | AD22: Tarif mat 2006
B23: le prix de parité est de | C23: =F17 -> 58.5 | D23: par tonne de matière seche. Ensuite il faut estimer le rendement en matière sèche. | Y23: Total | Z23: 148.3
B24: La pésée des remorques et l'analyse d'une matière sèche demeurent la solution la plus juste.
B26: En silo
B27: Il faut rajouter 25 € par tonne de matière sèche pour un maïs correctement conservé comprenant :
B28: le coût de la récolte, la confection du silo et la main d'oeuvre
C30: Estimation du rendement fourrage
B31: Équivalence entre le rendement de l'ensilage et le rendement en grains | S31: 125 | T31: 6.25
B33: Nombre de grains/m² | F33: 1500 | G33: 2000 | H33: 2500 | I33: 3000 | J33: 3500 | K33: 4000
B34: Rendement plante entière (T de MS/ha) | F34: 7 - 9 | G34: 10 - 11 | H34: 12 - 13 | I34: 14.5 -15.5 | J34: 16 -18 | K34: 18 - 20
B35: Rendement grains (q/ha à 15 % d'humidité) | F35: 35 - 45 | G35: 50 - 60 | H35: 65 - 75 | I35: 80 - 95 | J35: 95 - 110 | K35: 120 - 125
B36: Coefficient de conversion (q de grains/TMS) | F36: 4.4 à 5.6 | G36: 4.8 à 5.7 | H36: 5.2 à 6.0 | I36: 5.3 à 6.3 | J36: 5.6 à 6.5 | K36: 5.9 à 6.8
K37: Source ARVALIS - Institut du végétal
B39: Estimation du rendement fourrage
C41: Laisser une bande témoin récoltée en grains, voir le tableau équivalence grains ci-dessus
C43: Pesée de(s) remorque(s) et matière sèche (une poignée à chaque remorque dans un seau à l'ombre,
C44: puis prélèvement de 500 gr pour analyse de matière sèche)
I46: Distance champ silo
H47: % de MS | I47: 500 m | J47: 1000 m | K47: 2000 m
H48: 0.25 | I48: 116 | J48: 121 | K48: 130
H49: 0.3 | I49: 118 | J49: 123 | K49: 134
H50: 0.35 | I50: 113 | J50: 119 | K50: 131
C52: Cuber les silos : Densité en kg MS par M3 dans le silo
I54: L
L55: H
J57: l
C61: Calculer la densité d'un silo de mais ensilage (kg MS / M3)
C62: % MS | D62: 33 | E62: Silo couloir
C63: amidon | D63: 35 | G63: Teneur en amidon selon % grain
C64: hauteur | D64: 1.5 | E64: oui | G64: % grains | H64: 42 | I64: 46 | J64: 51 | K64: 55
C65: kg MS/m3 | D65: =IF(E64="oui",(929-17.5*D62+7.9*D63+44*D64)*D62/100,((929-17.5*D62+7.9*D63+44*D64)*D62/100)*0.9) -> 229.02 | G65: % amidon | H65: 25 | I65: 30 | J65: 35 | K65: 40 | M65: Densité sorghosucrier BMR
B66: Densité mais ensilage selon % amidon, hauteur, taux de matière sèche en silo couloir | M66: 126 kg MS/ M3
B67: Amidon | C67: Hauteur | D67: Matière sèche - % brut | M67: contre 220-230 en mais ensilage
B68: % | C68: m | D68: 29 | E68: =D68+2 -> 31 | F68: =E68+2 -> 33 | G68: 35 | H68: 37 | I68: 39 | J68: 41 | K68: 43
B69: 25 | C69: 1.7 | D69: =(929-17.5*$D$68+7.9*$B69+44*$C69)*$D$68/100 -> 201.202 | E69: =(929-17.5*E68+7.9*$B69+44*$C69)*E68/100 -> 204.228 | F69: 205.854 | G69: 206.08 | H69: 204.906 | I69: 202.332 | J69: 198.358 | K69: 192.984
C70: 2.2 | D70: =(929-17.5*D68+7.9*$B69+44*$C$70)*D68/100 -> 207.582 | E70: 211.048 | F70: 213.114 | G70: 213.78 | H70: 213.046 | I70: 210.912 | J70: 207.378 | K70: 202.444
C71: 2.7 | D71: =(929-17.5*D68+7.9*$B69+44*$C$71)*D68/100 -> 213.962 | E71: 217.868 | F71: 220.374 | G71: 221.48 | H71: 221.186 | I71: 219.492 | J71: 216.398 | K71: 211.904
B72: 30 | C72: 1.7 | D72: =(929-17.5*D68+7.9*$B72+44*$C72)*D68/100 -> 212.657 | E72: 216.473 | F72: 218.889 | G72: 219.905 | H72: 219.521 | I72: 217.737 | J72: 214.553 | K72: 209.969
C73: 2.2 | D73: =(929-17.5*D68+7.9*$B72+44*$C73)*D68/100 -> 219.037 | E73: 223.293 | F73: 226.149 | G73: 227.605 | H73: 227.661 | I73: 226.317 | J73: 223.573 | K73: 219.429
C74: 2.7 | D74: =(929-17.5*D68+7.9*$B72+44*$C74)*D68/100 -> 225.417 | E74: 230.113 | F74: 233.409 | G74: 235.305 | H74: 235.801 | I74: 234.897 | J74: 232.593 | K74: 228.889
B75: 35 | C75: 1.7 | D75: =(929-17.5*D68+7.9*$B75+44*$C75)*D68/100 -> 224.112 | E75: 228.718 | F75: 231.924 | G75: 233.73 | H75: 234.136 | I75: 233.142 | J75: 230.748 | K75: 226.954
C76: 2.2 | D76: =(929-17.5*D68+7.9*$B75+44*$C76)*D68/100 -> 230.492 | E76: 235.538 | F76: 239.184 | G76: 241.43 | H76: 242.276 | I76: 241.722 | J76: 239.768 | K76: 236.414
C77: 2.7 | D77: =(929-17.5*D68+7.9*$B75+44*$C77)*D68/100 -> 236.872 | E77: 242.358 | F77: 246.444 | G77: 249.13 | H77: 250.416 | I77: 250.302 | J77: 248.788 | K77: 245.874
B78: 40 | C78: 1.7 | D78: =(929-17.5*D68+7.9*$B78+44*$C78)*D68/100 -> 235.567 | E78: 240.963 | F78: 244.959 | G78: 247.555 | H78: 248.751 | I78: 248.547 | J78: 246.943 | K78: 243.939
C79: 2.2 | D79: =(929-17.5*D68+7.9*$B78+44*$C79)*D68/100 -> 241.947 | E79: 247.783 | F79: 252.219 | G79: 255.255 | H79: 256.891 | I79: 257.127 | J79: 255.963 | K79: 253.399
C80: 2.7 | D80: =(929-17.5*D68+7.9*$B78+44*$C80)*D68/100 -> 248.327 | E80: 254.603 | F80: 259.479 | G80: 262.955 | H80: 265.031 | I80: 265.707 | J80: 264.983 | K80: 262.859
W82: T grain | X82: % T de grain / TMS
M85: rdt référence | N85: 80
M86: cout référence +- 25% | N86: 160 | O86: 24 | Y86: T MS | Z86: T Tiges et feuilles | AA86: Rafles | AB86: grain rafle
C87: Grille prix du mais ensilage sur pied (même base de calcul) | W87: 3.5 | X87: 49.2 | Y87: =W87*100/X87 -> 7.113821138 | Z87: =Y87-W87 -> 3.613821138 | AA87: =AB87-(W87*0.85) -> 1.4875 | AB87: =(W87*0.85)*1.5 -> 4.4625 | AC87: =AA87/Z87 -> 0.4116141732
B88: Prix /T (€) | C88: 75 | D88: =C88+5 -> 80 | E88: =D88+5 -> 85 | F88: 90 | G88: 95 | H88: 100 | I88: 105 | J88: 110 | K88: 115 | L88: 120 | M88: 125 | N88: 130 | O88: 135 | P88: 140 | Q88: =P88+5 -> 145 | T88: coût récolte… | U88: Valeur alimentaire | V88: coef | W88: 4 | X88: 50 | Y88: =W88*100/X88 -> 8 | Z88: =Y88-W88 -> 4 | AA88: =AB88-(W88*0.85) -> 1.7 | AB88: =(W88*0.85)*1.5 -> 5.1 | AC88: =AA88/Z88 -> 0.425
B89: Rdt espéré grain (T) | W89: 4.5 | X89: 50.8 | Y89: 8.858267717 | Z89: 4.358267717 | AA89: 1.9125 | AB89: 5.7375 | AC89: 0.4388211382
B90: 4 | C90: =(($B90*$C$88)-$T90+$U90)/($B90/$V90*10) -> 35.75 | D90: =(($B90*D$88)-$T90+$U90)/($B90/$V90*10) -> 38.25 | E90: 40.75 | F90: 43.25 | G90: 45.75 | H90: 48.25 | I90: 50.75 | J90: 53.25 | K90: 55.75 | L90: 58.25 | M90: 60.75 | N90: 63.25 | O90: 65.75 | P90: 68.25 | Q90: 70.75 | T90: =((B90*10-$N$85)*1.25)+$N$86 -> 110 | U90: =VLOOKUP(B90,VAlimentaire,4)*$O$86 -> 96 | V90: =(VLOOKUP(B90,VAlimentaire,2))/10 -> 5 | W90: 5.5 | X90: 52.5 | Y90: 10.47619048 | Z90: 4.976190476 | AA90: 2.3375 | AB90: 7.0125 | AC90: 0.4697368421
B91: =+B90+1 -> 5 | C91: 36.2812 | D91: 38.8212 | E91: 41.3612 | F91: 43.9012 | G91: 46.4412 | H91: 48.9812 | I91: 51.5212 | J91: 54.0612 | K91: 56.6012 | L91: 59.1412 | M91: 61.6812 | N91: 64.2212 | O91: 66.7612 | P91: 69.3012 | Q91: 71.8412 | T91: 122.5 | U91: 104.5984252 | V91: 5.08 | W91: 6 | X91: 53.7 | Y91: 11.17318436 | Z91: 5.173184358 | AA91: 2.55 | AB91: 7.65 | AC91: 0.4929265659
B92: =+B91+1 -> 6 | C92: 39.3045 | D92: 41.9895 | E92: 44.6745 | F92: 47.3595 | G92: 50.0445 | H92: 52.7295 | I92: 55.4145 | J92: 58.0995 | K92: 60.7845 | L92: 63.4695 | M92: 66.1545 | N92: 68.8395 | O92: 71.5245 | P92: 74.2095 | Q92: 76.8945 | T92: 135 | U92: 124.1564246 | V92: 5.37 | W92: 6.5 | X92: 54.9 | Y92: 11.83970856 | Z92: 5.339708561 | AA92: 2.7625 | AB92: 8.2875 | AC92: 0.5173503326
B93: 7 | C93: 40.76 | D93: =(($B93*$D$88)-$T93+$U93)/($B93/$V93*10) -> 43.56 | E93: =(($B93*E88)-$T93+$U93)/($B93/$V93*10) -> 46.36 | F93: 49.16 | G93: 51.96 | H93: 54.76 | I93: 57.56 | J93: 60.36 | K93: 63.16 | L93: 65.96 | M93: 68.76 | N93: 71.56 | O93: 74.36 | P93: 77.16 | Q93: 79.96 | T93: 147.5 | U93: 132 | V93: 5.6 | W93: 7 | X93: 56 | Y93: 12.5 | Z93: 5.5 | AA93: 2.975 | AB93: 8.925 | AC93: 0.5409090909
B94: 8 | C94: 41.856 | D94: 44.736 | E94: =(($B94*E88)-$T94+$U94)/($B94/$V94*10) -> 47.616 | F94: 50.496 | G94: 53.376 | H94: 56.256 | I94: 59.136 | J94: 62.016 | K94: 64.896 | L94: 67.776 | M94: 70.656 | N94: 73.536 | O94: 76.416 | P94: 79.296 | Q94: 82.176 | T94: 160 | U94: 141.3333333 | V94: 5.76 | W94: 7.5 | X94: 56.8 | Y94: 13.20422535 | Z94: 5.704225352 | AA94: 3.1875 | AB94: 9.5625 | AC94: 0.5587962963
B95: 9 | C95: 42.78166667 | D95: 45.73166667 | E95: =(($B95*E88)-$T95+$U95)/($B95/$V95*10) -> 48.68166667 | F95: 51.63166667 | G95: 54.58166667 | H95: 57.53166667 | I95: 60.48166667 | J95: 63.43166667 | K95: 66.38166667 | L95: 69.33166667 | M95: 72.28166667 | N95: 75.23166667 | O95: 78.18166667 | P95: 81.13166667 | Q95: 84.08166667 | T95: 172.5 | U95: 150.1016949 | V95: 5.9 | W95: 8 | X95: 57.6 | Y95: 13.88888889 | Z95: 5.888888889 | AA95: 3.4 | AB95: 10.2 | AC95: 0.5773584906
B96: 10 | C96: 43.5 | D96: 46.5 | E96: =(($B96*E88)-$T96+$U96)/($B96/$V96*10) -> 49.5 | F96: 52.5 | G96: 55.5 | H96: 58.5 | I96: 61.5 | J96: 64.5 | K96: 67.5 | L96: 70.5 | M96: 73.5 | N96: 76.5 | O96: 79.5 | P96: 82.5 | Q96: 85.5 | T96: 185 | U96: 160 | V96: 6 | W96: 8.5 | X96: 58.5 | Y96: 14.52991453 | Z96: 6.02991453 | AA96: 3.6125 | AB96: 10.8375 | AC96: 0.5990963855
B97: 11 | C97: 44.15772727 | D97: 47.20772727 | E97: =(($B97*E88)-$T97+$U97)/($B97/$V97*10) -> 50.25772727 | F97: 53.30772727 | G97: 56.35772727 | H97: 59.40772727 | I97: 62.45772727 | J97: 65.50772727 | K97: 68.55772727 | L97: 71.60772727 | M97: 74.65772727 | N97: 77.70772727 | O97: 80.75772727 | P97: 83.80772727 | Q97: 86.85772727 | T97: 197.5 | U97: 168.7868852 | V97: 6.1 | W97: 9 | X97: 59 | Y97: 15.25423729 | Z97: 6.254237288 | AA97: 3.825 | AB97: 11.475 | AC97: 0.6115853659
B98: 12 | C98: 44.77 | D98: 47.87 | E98: =(($B98*E$88)-$T98+$U98)/($B98/$V98*10) -> 50.97 | F98: =(($B98*F88)-$T98+$U98)/($B98/$V98*10) -> 54.07 | G98: 57.17 | H98: 60.27 | I98: 63.37 | J98: 66.47 | K98: 69.57 | L98: 72.67 | M98: 75.77 | N98: 78.87 | O98: 81.97 | P98: 85.07 | Q98: 88.17 | T98: 210 | U98: 176.516129 | V98: 6.2 | W98: 9.5 | X98: 59.5 | Y98: 15.96638655 | Z98: 6.466386555 | AA98: 4.0375 | AB98: 12.1125 | AC98: 0.624382716
B99: 13 | C99: 45.34730769 | D99: 48.49730769 | E99: =(($B99*E$88)-$T99+$U99)/($B99/$V99*10) -> 51.64730769 | F99: =(($B99*F$88)-$T99+$U99)/($B99/$V99*10) -> 54.79730769 | G99: 57.94730769 | H99: 61.09730769 | I99: 64.24730769 | J99: 67.39730769 | K99: 70.54730769 | L99: 73.69730769 | M99: 76.84730769 | N99: 79.99730769 | O99: 83.14730769 | P99: 86.29730769 | Q99: 89.44730769 | T99: 222.5 | U99: 183.2380952 | V99: 6.3 | W99: 10 | X99: 60 | Y99: 16.66666667 | Z99: 6.666666667 | AA99: 4.25 | AB99: 12.75 | AC99: 0.6375
W100: 10.5 | X100: 60.5 | Y100: 17.3553719 | Z100: 6.855371901 | AA100: 4.4625 | AB100: 13.3875 | AC100: 0.6509493671
B101: Exemple : pour un rendement grain de | E101: =B94 -> 8 | F101: et un prix de | H101: =H88 -> 100 | I101: sec payé au moment de la récolte, le prix de parité est de | O101: =H94 -> 56.256 | P101: par tonne | W101: 11 | X101: 61 | Y101: =W101*100/X101 -> 18.03278689 | Z101: =Y101-W101 -> 7.032786885 | AA101: 4.675 | AB101: 14.025 | AC101: 0.6647435897
B102: de matière seche. | W102: 11.5 | X102: 61.5 | Y102: =W102*100/X102 -> 18.69918699 | Z102: =Y102-W102 -> 7.199186992 | AA102: 4.8875 | AB102: 14.6625 | AC102: 0.6788961039
B103: Ensuite il faut estimer le rendement en matière sèche. La pésée des remorques et l'analyse d'une matière sèche demeurent la solution la plus juste. | W103: 12 | X103: 62 | Y103: =W103*100/X103 -> 19.35483871 | Z103: =Y103-W103 -> 7.35483871 | AA103: 5.1 | AB103: 15.3 | AC103: 0.6934210526
W104: 12.5 | X104: 62.5 | Y104: =W104*100/X104 -> 20 | Z104: =Y104-W104 -> 7.5 | AA104: 5.3125 | AB104: 15.9375 | AC104: 0.7083333333
W105: 13 | X105: 63 | Y105: =W105*100/X105 -> 20.63492063 | Z105: =Y105-W105 -> 7.634920635 | AA105: 5.525 | AB105: 16.575 | AC105: 0.7236486486
B108: Prix parité du mais épi
D109: La variabilité est dans l’appréciation de la part de rendement grain, rafle, tige et feuilles
B111: ensilage épi = 65% du mais ensilage
B112: ou 1.5 fois le rdt grain à 15 % d'eau
F113: prix du grain net séchage | I113: 100 | J113: 130 | K113: cout récolte
E115: rdt | F115: Rdt 100 MS
C116: ensilage plante entière | E116: 10.5 | F116: =E116 -> 10.5 | G116: 55 | H116: 72 | I116: =G116*E116 -> 577.5 | J116: =H116*E116 -> 756
C117: ensilage épi = 65% ensilage | E117: =E116*0.65 -> 6.825 | F117: =E117 -> 6.825 | G117: =G116/0.65 -> 84.61538462 | I117: =G117*F117 -> 577.5
C118: ensilage épi = 1.5 fois le grain | E118: =+E119*1.5 -> 8.25 | F118: =+F119*1.5 -> 7.0125 | G118: =G119/1.5 -> 78.43137255 | H118: =H119/1.5 -> 101.9607843 | I118: =G118*F118 -> 550 | J118: =H118*F118 -> 715
C119: grain | E119: 5.5 | F119: =E119*0.85 -> 4.675 | G119: =I113/0.85 -> 117.6470588 | H119: =J113/0.85 -> 152.9411765 | I119: =G119*F119 -> 550 | J119: =H119*F119 -> 715
C120: Grain/ plante entière | E120: =E119/E116 -> 0.5238095238
E126: Prix grain à 15% d'humidité | F126: 90 | G126: 100 | H126: 110 | I126: 120 | J126: 130 | K126: 140
C127: Cout récolte- rafle exportée | D127: Rdt grain 15% eau (en T) | E127: Rendement épi (TMS) | F127: Prix /ha selon prix du grain, rendement
C128: 60 | D128: 5 | E128: =+D128*1.5*0.85 -> 6.375 | F128: =(F$126*0.85*$E128)-$C128 -> 427.6875 | G128: =(G$126*0.85*$E128)-$C128 -> 481.875 | H128: 536.0625 | I128: 590.25 | J128: 644.4375 | K128: 698.625
C129: 65 | D129: 6 | E129: =+D129*0.85*1.5 -> 7.65 | F129: =(F$126*0.85*$E129)-$C129 -> 520.225 | G129: 585.25 | H129: 650.275 | I129: 715.3 | J129: 780.325 | K129: 845.35
C130: 70 | D130: 7 | E130: =+D130*1.5*0.85 -> 8.925 | F130: 612.7625 | G130: 688.625 | H130: 764.4875 | I130: 840.35 | J130: 916.2125 | K130: 992.075
C131: 75 | D131: 8 | E131: 10.2 | F131: 705.3 | G131: 792 | H131: 878.7 | I131: 965.4 | J131: 1052.1 | K131: 1138.8
C132: 80 | D132: 9 | E132: 11.475 | F132: 797.8375 | G132: 895.375 | H132: 992.9125 | I132: 1090.45 | J132: 1187.9875 | K132: 1285.525
C133: 90 | D133: 10 | E133: 12.75 | F133: 885.375 | G133: 993.75 | H133: 1102.125 | I133: 1210.5 | J133: 1318.875 | K133: 1427.25
D136: Prix grain à 15% d'humidité | F136: 90 | G136: 100 | H136: 110 | I136: 120 | J136: 130 | K136: 140
C137: Cout récolte- rafle exportée | D137: Rdt grain 15% eau (en T) | E137: Rendement épi (TMS) | F137: Prix /TMS selon prix du grain et le rendement
C138: 60 | D138: 5 | E138: =+D138*1.5*0.85 -> 6.375 | F138: =((F$126*0.85*$E138)-$C138)/$E138 -> 67.08823529 | G138: =((G$126*0.85*$E138)-$C138)/$E138 -> 75.58823529 | H138: 84.08823529 | I138: 92.58823529 | J138: 101.0882353 | K138: 109.5882353
C139: 65 | D139: 6 | E139: =+D139*0.85*1.5 -> 7.65 | F139: 68.00326797 | G139: 76.50326797 | H139: 85.00326797 | I139: 93.50326797 | J139: 102.003268 | K139: 110.503268
C140: 70 | D140: 7 | E140: =+D140*1.5*0.85 -> 8.925 | F140: 68.65686275 | G140: 77.15686275 | H140: 85.65686275 | I140: 94.15686275 | J140: 102.6568627 | K140: 111.1568627
C141: 75 | D141: 8 | E141: 10.2 | F141: 69.14705882 | G141: 77.64705882 | H141: 86.14705882 | I141: 94.64705882 | J141: 103.1470588 | K141: 111.6470588
C142: 80 | D142: 9 | E142: 11.475 | F142: 69.52832244 | G142: 78.02832244 | H142: 86.52832244 | I142: 95.02832244 | J142: 103.5283224 | K142: 112.0283224
C143: 85 | D143: 10 | E143: 12.75 | F143: 69.83333333 | G143: 78.33333333 | H143: 86.83333333 | I143: 95.33333333 | J143: 103.8333333 | K143: 112.3333333

Sheet Herbe
C1: Prix des fourrages (herbe) | AJ1: oui
C2: selon la parité paille blé soja | AJ2: non
Z6: Valeur récolte
W7: Aliment | Y7: Tx MS | Z7: UFL | AA7: UFV | AB7: (UFL+UFV)/2 | AC7: PDIN | AD7: PDIE | AE7: Perte récolte | AF7: Cout récolte | AG7: % MS
W8: ='Valeur aliments'!C5 -> Betteraves fourragères | X8: ='Valeur aliments'!B5 -> 0 | Y8: =AG8 -> 1 | Z8: ='Valeur aliments'!E5 -> 1.15 | AA8: ='Valeur aliments'!F5 -> 1.16 | AB8: =(Z8+AA8)/2 -> 1.155 | AC8: ='Valeur aliments'!H5 -> 62 | AD8: ='Valeur aliments'!I5 -> 86 | AE8: ='Valeur aliments'!N5/100 -> 0.07 | AF8: ='Valeur aliments'!O5 -> 50 | AG8: ='Valeur aliments'!P5 -> 1
W9: ='Valeur aliments'!C6 -> choux moelliers | X9: ='Valeur aliments'!B6 -> 0 | Y9: =AG9 -> 0 | Z9: ='Valeur aliments'!E6 -> 1.03 | AA9: ='Valeur aliments'!F6 -> 1.01 | AB9: =(Z9+AA9)/2 -> 1.02 | AC9: ='Valeur aliments'!H6 -> 104 | AD9: ='Valeur aliments'!I6 -> 98 | AE9: ='Valeur aliments'!N6/100 -> 0 | AF9: ='Valeur aliments'!O6 -> 0 | AG9: ='Valeur aliments'!P6 -> 0
G10: Cout récolte en Euros | W10: ='Valeur aliments'!C7 -> enruba dactyle mi-fané début floraison 1èr cycle | X10: ='Valeur aliments'!B7 -> enru | Y10: 1 | Z10: ='Valeur aliments'!E7 -> 0.66 | AA10: ='Valeur aliments'!F7 -> 0.59 | AB10: 0.625 | AC10: ='Valeur aliments'!H7 -> 70 | AD10: ='Valeur aliments'!I7 -> 71 | AE10: ='Valeur aliments'!N7/100 -> 0.1 | AF10: ='Valeur aliments'!O7 -> 54 | AG10: ='Valeur aliments'!P7 -> 1
W11: ='Valeur aliments'!C8 -> enruba dactyle mi-fané fin épiaison 1èr cycle | X11: ='Valeur aliments'!B8 -> enru | Y11: 1 | Z11: ='Valeur aliments'!E8 -> 0.72 | AA11: ='Valeur aliments'!F8 -> 0.64 | AB11: 0.68 | AC11: ='Valeur aliments'!H8 -> 77 | AD11: ='Valeur aliments'!I8 -> 74 | AE11: ='Valeur aliments'!N8/100 -> 0.1 | AF11: ='Valeur aliments'!O8 -> 54 | AG11: ='Valeur aliments'!P8 -> 1
H12: Ensilage herbe | I12: Enrubannage | J12: Foin | W12: ='Valeur aliments'!C9 -> enruba fétuque mi-fané début floraison 1èr cycle | X12: ='Valeur aliments'!B9 -> enru | Y12: 1 | Z12: ='Valeur aliments'!E9 -> 0.61 | AA12: ='Valeur aliments'!F9 -> 0.51 | AB12: 0.56 | AC12: ='Valeur aliments'!H9 -> 64 | AD12: ='Valeur aliments'!I9 -> 64 | AE12: ='Valeur aliments'!N9/100 -> 0.1 | AF12: ='Valeur aliments'!O9 -> 54 | AG12: ='Valeur aliments'!P9 -> 1
W13: ='Valeur aliments'!C10 -> enruba fétuque mi-fané fin épiaison 1èr cycle | X13: ='Valeur aliments'!B10 -> enru | Y13: 1 | Z13: ='Valeur aliments'!E10 -> 0.67 | AA13: ='Valeur aliments'!F10 -> 0.59 | AB13: 0.63 | AC13: ='Valeur aliments'!H10 -> 66 | AD13: ='Valeur aliments'!I10 -> 68 | AE13: ='Valeur aliments'!N10/100 -> 0.1 | AF13: ='Valeur aliments'!O10 -> 54 | AG13: ='Valeur aliments'!P10 -> 1
B14: Prix des aliments de référence, en euros par tonne brute | G14: Rendement | H14: 5 | I14: 5 | J14: 5 | W14: ='Valeur aliments'!C11 -> enruba luzerne mi-fané début floraison 1èr cycle | X14: ='Valeur aliments'!B11 -> enru | Y14: 1 | Z14: ='Valeur aliments'!E11 -> 0.67 | AA14: ='Valeur aliments'!F11 -> 0.57 | AB14: 0.62 | AC14: ='Valeur aliments'!H11 -> 105 | AD14: ='Valeur aliments'!I11 -> 75 | AE14: ='Valeur aliments'!N11/100 -> 0.1 | AF14: ='Valeur aliments'!O11 -> 54 | AG14: ='Valeur aliments'!P11 -> 1
B15: Tourteau de Soja 48 €/T | D15: Blé €/T | E15: Paille €/T | G15: Cout / T | H15: 42 | I15: 44 | J15: 40 | W15: ='Valeur aliments'!C12 -> enruba luzerne mi-fané fin bourgeonnement 1èr cycle | X15: ='Valeur aliments'!B12 -> enru | Y15: 1 | Z15: ='Valeur aliments'!E12 -> 0.71 | AA15: ='Valeur aliments'!F12 -> 0.62 | AB15: 0.665 | AC15: ='Valeur aliments'!H12 -> 113 | AD15: ='Valeur aliments'!I12 -> 79 | AE15: ='Valeur aliments'!N12/100 -> 0.1 | AF15: ='Valeur aliments'!O12 -> 54 | AG15: ='Valeur aliments'!P12 -> 1
G16: Temps travail | H16: 3h | I16: 3h3 | J16: 3h3 | W16: ='Valeur aliments'!C13 -> enruba rga mi-fané début floraison 1èr cycle | X16: ='Valeur aliments'!B13 -> enru | Y16: 1 | Z16: ='Valeur aliments'!E13 -> 0.7 | AA16: ='Valeur aliments'!F13 -> 0.62 | AB16: 0.66 | AC16: ='Valeur aliments'!H13 -> 66 | AD16: ='Valeur aliments'!I13 -> 71 | AE16: ='Valeur aliments'!N13/100 -> 0.1 | AF16: ='Valeur aliments'!O13 -> 54 | AG16: ='Valeur aliments'!P13 -> 1
B17: 400 | D17: 150 | E17: 65 | G17: Cout / T (18€/h) | H17: =3*18/H14 -> 10.8 | I17: =3.5*18/I14 -> 12.6 | J17: =3.5*18/J14 -> 12.6 | W17: ='Valeur aliments'!C14 -> enruba rga mi-fané fin épiaison 1èr cycle | X17: ='Valeur aliments'!B14 -> enru | Y17: 1 | Z17: ='Valeur aliments'!E14 -> 0.76 | AA17: ='Valeur aliments'!F14 -> 0.69 | AB17: 0.725 | AC17: ='Valeur aliments'!H14 -> 68 | AD17: ='Valeur aliments'!I14 -> 74 | AE17: ='Valeur aliments'!N14/100 -> 0.1 | AF17: ='Valeur aliments'!O14 -> 54 | AG17: ='Valeur aliments'!P14 -> 1
B18: Récolte à la charge de l'acheteur | H18: Valeurs alimentaires du fourrage | J18: Cout récolte | K18: Tx MS | L18: % perte | W18: ='Valeur aliments'!C15 -> enruba rgi mi-fané début floraison 1èr cycle | X18: ='Valeur aliments'!B15 -> enru | Y18: 1 | Z18: ='Valeur aliments'!E15 -> 0.68 | AA18: ='Valeur aliments'!F15 -> 0.6 | AB18: 0.64 | AC18: ='Valeur aliments'!H15 -> 46 | AD18: ='Valeur aliments'!I15 -> 63 | AE18: ='Valeur aliments'!N15/100 -> 0.1 | AF18: ='Valeur aliments'!O15 -> 54 | AG18: ='Valeur aliments'!P15 -> 1
B19: Prix des fourrages (récolte déduite) | F19: T MS | G19: T brute | H19: UF/kg MS | I19: PDIN/kg MS | O19: UF | W19: ='Valeur aliments'!C16 -> enruba rgi mi-fané fin épiaison 1èr cycle | X19: ='Valeur aliments'!B16 -> enru | Y19: 1 | Z19: ='Valeur aliments'!E16 -> 0.72 | AA19: ='Valeur aliments'!F16 -> 0.64 | AB19: 0.68 | AC19: ='Valeur aliments'!H16 -> 52 | AD19: ='Valeur aliments'!I16 -> 67 | AE19: ='Valeur aliments'!N16/100 -> 0.1 | AF19: ='Valeur aliments'!O16 -> 54 | AG19: ='Valeur aliments'!P16 -> 1
B20: Ens. RGA dé épiaison coupe fine 35% ms | F20: =IF(VLOOKUP(B20,Table6,2)="foin","",(((M20*$B$17/0.88+O20*$D$17/0.85+P20*$E$17/0.88)-J20)*(1-L20)*K20)) -> 104.2638394 | G20: =IF(VLOOKUP(B20,Table6,2)="foin",(((M20*$B$17/0.85+O20*$D$17/0.85+P20*$E$17/0.88)-J20)*(1-L20)*K20),"") ->  | H20: =VLOOKUP(B20,Table6,6) -> 0.865 | I20: =VLOOKUP(B20,Table6,7) -> 90 | J20: =VLOOKUP($B20,Table6,10) -> 50 | K20: =VLOOKUP($B20,Table6,3) -> 1 | L20: =VLOOKUP($B20,Table6,9) -> 0.1 | M20: =1-O20-P20 -> 0.1110008337 | O20: =(1.18-H20-(1.18-0.365)*P20)/(1.18-1.21) -> 0.4846560006 | P20: =(((1.18-H20)*(377-81))-((377-I20)*(1.18-1.21)))/(((1.18-0.365)*(377-81))-((377-22)*(1.18-1.21))) -> 0.4043431657 | W20: ='Valeur aliments'!C17 -> Ens blé laiteux pateux 35% | X20: ='Valeur aliments'!B17 -> ensi | Y20: 1 | Z20: ='Valeur aliments'!E17 -> 0.64 | AA20: ='Valeur aliments'!F17 -> 0.55 | AB20: 0.595 | AC20: ='Valeur aliments'!H17 -> 60 | AD20: ='Valeur aliments'!I17 -> 60 | AE20: ='Valeur aliments'!N17/100 -> 0.1 | AF20: ='Valeur aliments'!O17 -> 42 | AG20: ='Valeur aliments'!P17 -> 1
B21: Ens. RGA fin épiaison coupe fine 35% ms | F21: 81.01553247 | H21: 0.74 | I21: 70 | J21: 50 | K21: 1 | L21: 0.1 | M21: =1-O21-P21 -> 0.07318670848 | O21: 0.3731986184 | P21: 0.5536146731 | W21: ='Valeur aliments'!C18 -> Ens mais 30 % ms (pateux) | X21: ='Valeur aliments'!B18 -> ensi | Y21: 1 | Z21: ='Valeur aliments'!E18 -> 0.9 | AA21: ='Valeur aliments'!F18 -> 0.8 | AB21: 0.85 | AC21: ='Valeur aliments'!H18 -> 42 | AD21: ='Valeur aliments'!I18 -> 65 | AE21: ='Valeur aliments'!N18/100 -> 0.07 | AF21: ='Valeur aliments'!O18 -> 30 | AG21: ='Valeur aliments'!P18 -> 1
B22: Ens. RGI dé épiaison coupe fine 35% ms | F22: 91.20939088 | H22: 0.8 | I22: 70 | J22: 42 | K22: 1 | L22: 0.1 | M22: =1-O22-P22 -> 0.05913295486 | O22: 0.4577593394 | P22: 0.4831077057 | W22: ='Valeur aliments'!C19 -> Ens mais 35 % ms (vitreux) | X22: ='Valeur aliments'!B19 -> ensi | Y22: 1 | Z22: ='Valeur aliments'!E19 -> 0.91 | AA22: ='Valeur aliments'!F19 -> 0.81 | AB22: 0.86 | AC22: ='Valeur aliments'!H19 -> 42 | AD22: ='Valeur aliments'!I19 -> 67 | AE22: ='Valeur aliments'!N19/100 -> 0.07 | AF22: ='Valeur aliments'!O19 -> 30 | AG22: ='Valeur aliments'!P19 -> 1
B23: Ens. RGI fin épiaison coupe fine 35% ms | F23: 68.21189879 | H23: 0.705 | I23: 57 | J23: 50 | K23: 1 | L23: 0.1 | M23: =1-O23-P23 -> 0.03777442534 | O23: 0.3659335424 | P23: 0.5962920322 | W23: ='Valeur aliments'!C20 -> Ens mais 35 % ms (vitreux) % épis >65 | X23: ='Valeur aliments'!B20 -> ensi | Y23: 1 | Z23: ='Valeur aliments'!E20 -> 0.96 | AA23: ='Valeur aliments'!F20 -> 0.87 | AB23: 0.915 | AC23: ='Valeur aliments'!H20 -> 50 | AD23: ='Valeur aliments'!I20 -> 71 | AE23: ='Valeur aliments'!N20/100 -> 0.07 | AF23: ='Valeur aliments'!O20 -> 30 | AG23: ='Valeur aliments'!P20 -> 1
B24: Ens. Fétuque dé épiaison c. fine 35 % Ms | F24: 96.77786673 | H24: 0.69 | I24: 83 | J24: 42 | K24: 1 | L24: 0.1 | M24: 0.1285084759 | O24: 0.2606693398 | P24: 0.6108221843 | W24: ='Valeur aliments'!C21 -> Ens orge laiteux pateux 35% | X24: ='Valeur aliments'!B21 -> ensi | Y24: 0 | Z24: ='Valeur aliments'!E21 -> 0.69 | AA24: ='Valeur aliments'!F21 -> 0.6 | AB24: 0.645 | AC24: ='Valeur aliments'!H21 -> 50 | AD24: ='Valeur aliments'!I21 -> 58 | AE24: ='Valeur aliments'!N21/100 -> 0 | AF24: ='Valeur aliments'!O21 -> 0 | AG24: ='Valeur aliments'!P21 -> 0
B25: Ens. Dactyle dé épiaison c. fine 35 % Ms | F25: 131.7769119 | H25: 0.8 | I25: 100 | J25: 30 | K25: 1 | L25: 0.07 | M25: 0.1597721228 | O25: 0.3606931597 | P25: 0.4795347175 | W25: ='Valeur aliments'!C22 -> Ens. Dactyle dé épiaison c. fine 35 % Ms | X25: ='Valeur aliments'!B22 -> ensi | Y25: 1 | Z25: ='Valeur aliments'!E22 -> 0.83 | AA25: ='Valeur aliments'!F22 -> 0.77 | AB25: 0.8 | AC25: ='Valeur aliments'!H22 -> 100 | AD25: ='Valeur aliments'!I22 -> 71 | AE25: ='Valeur aliments'!N22/100 -> 0.07 | AF25: ='Valeur aliments'!O22 -> 30 | AG25: ='Valeur aliments'!P22 -> 1
B26: Ens. Dactyle fin épiaison c. fine 35 % Ms | F26: 106.7692609 | H26: 0.69 | I26: 78 | J26: 30 | K26: 1 | L26: 0.07 | M26: 0.1117352813 | O26: 0.2768470364 | P26: 0.6114176823 | W26: ='Valeur aliments'!C23 -> Ens. Dactyle fin épiaison c. fine 35 % Ms | X26: ='Valeur aliments'!B23 -> ensi | Y26: 1 | Z26: ='Valeur aliments'!E23 -> 0.73 | AA26: ='Valeur aliments'!F23 -> 0.65 | AB26: 0.69 | AC26: ='Valeur aliments'!H23 -> 78 | AD26: ='Valeur aliments'!I23 -> 63 | AE26: ='Valeur aliments'!N23/100 -> 0.07 | AF26: ='Valeur aliments'!O23 -> 30 | AG26: ='Valeur aliments'!P23 -> 1
B27: Ens. Fétuque fin épiaison c. fine 35 % Ms | F27: 74.42674875 | G27: =IF(VLOOKUP(B27,Table6,2)="foin",(((M27*$B$17/0.85+O27*$D$17/0.85+P27*$E$17/0.88)-J27)*(1-L27)*K27),"") ->  | H27: 0.625 | I27: 69 | J27: 50 | K27: 1 | L27: 0.1 | M27: 0.09676843066 | O27: 0.2143594426 | P27: 0.6888721267 | W27: ='Valeur aliments'!C24 -> Ens. Fétuque dé épiaison c. fine 35 % Ms | X27: ='Valeur aliments'!B24 -> ensi | Y27: 1 | Z27: ='Valeur aliments'!E24 -> 0.73 | AA27: ='Valeur aliments'!F24 -> 0.65 | AB27: 0.69 | AC27: ='Valeur aliments'!H24 -> 83 | AD27: ='Valeur aliments'!I24 -> 63 | AE27: ='Valeur aliments'!N24/100 -> 0.1 | AF27: ='Valeur aliments'!O24 -> 42 | AG27: ='Valeur aliments'!P24 -> 1
B28: Foin Dactyle floraison 1 cycle beau tps | G28: 57.85012544 | H28: 0.555 | I28: 60 | J28: 50 | K28: 0.85 | L28: 0.05 | M28: 0.08297272619 | O28: 0.1448251221 | P28: 0.7722021517 | W28: ='Valeur aliments'!C25 -> Ens. Fétuque fin épiaison c. fine 35 % Ms | X28: ='Valeur aliments'!B25 -> ensi | Y28: 1 | Z28: ='Valeur aliments'!E25 -> 0.67 | AA28: ='Valeur aliments'!F25 -> 0.58 | AB28: 0.625 | AC28: ='Valeur aliments'!H25 -> 69 | AD28: ='Valeur aliments'!I25 -> 58 | AE28: ='Valeur aliments'!N25/100 -> 0.1 | AF28: ='Valeur aliments'!O25 -> 50 | AG28: ='Valeur aliments'!P25 -> 1
B29: Foin Rga floraison 1 er cycle beau tps | F29: =IF(VLOOKUP(B29,Table6,2)="foin","",(((M29*$B$17/0.88+O29*$D$17/0.85+P29*$E$17/0.88)-J29)*(1-L29)*K29)) ->  | G29: =IF(VLOOKUP(B29,Table6,2)="foin",(((M29*$B$17/0.85+O29*$D$17/0.85+P29*$E$17/0.88)-J29)*(1-L29)*K29),"") -> 58.71292822 | H29: 0.595 | I29: 59 | J29: 50 | K29: 0.85 | L29: 0.05 | M29: 0.07024891818 | O29: 0.2044344754 | P29: 0.7253166065 | W29: ='Valeur aliments'!C26 -> Ens. luzerne Bourgeon 55% | X29: ='Valeur aliments'!B26 -> ensi | Y29: 1 | Z29: ='Valeur aliments'!E26 -> 0.71 | AA29: ='Valeur aliments'!F26 -> 0.62 | AB29: 0.665 | AC29: ='Valeur aliments'!H26 -> 113 | AD29: ='Valeur aliments'!I26 -> 79 | AE29: ='Valeur aliments'!N26/100 -> 0.1 | AF29: ='Valeur aliments'!O26 -> 50 | AG29: ='Valeur aliments'!P26 -> 1
B30: Foin PP floraison beau tps | F30: =IF(VLOOKUP(B30,Table6,2)="foin","",(((M30*$B$17/0.88+O30*$D$17/0.85+P30*$E$17/0.88)-J30)*(1-L30)*K30)) ->  | G30: 57.28030938 | H30: 0.58 | I30: 58 | J30: 50 | K30: 0.85 | L30: 0.05 | M30: 0.07040771765 | O30: 0.1865298345 | P30: 0.7430624479 | W30: ='Valeur aliments'!C27 -> ens. mélange imma triticale pois | X30: ='Valeur aliments'!B27 -> ensi | Y30: 1 | Z30: ='Valeur aliments'!E27 -> 0.75 | AA30: ='Valeur aliments'!F27 -> 0.75 | AB30: 0.75 | AC30: ='Valeur aliments'!H27 -> 65 | AD30: ='Valeur aliments'!I27 -> 70 | AE30: ='Valeur aliments'!N27/100 -> 0.1 | AF30: ='Valeur aliments'!O27 -> 50 | AG30: ='Valeur aliments'!P27 -> 1
B31: Foin Fétuque floraison 1 cycle beau tps | G31: 55.58280784 | H31: 0.52 | I31: 59 | J31: 50 | K31: 0.85 | L31: 0.05 | M31: 0.08781611021 | O31: 0.09873357418 | P31: 0.8134503156 | W31: ='Valeur aliments'!C28 -> Ens. RGA dé épiaison coupe fine 35% ms | X31: ='Valeur aliments'!B28 -> ensi | Y31: 1 | Z31: ='Valeur aliments'!E28 -> 0.89 | AA31: ='Valeur aliments'!F28 -> 0.84 | AB31: 0.865 | AC31: ='Valeur aliments'!H28 -> 90 | AD31: ='Valeur aliments'!I28 -> 73 | AE31: ='Valeur aliments'!N28/100 -> 0.1 | AF31: ='Valeur aliments'!O28 -> 50 | AG31: ='Valeur aliments'!P28 -> 1
B32: Foin Rgi floraison 1 cycle beau tps | G32: 38.90920065 | H32: 0.565 | I32: 36 | J32: 50 | K32: 0.85 | L32: 0.05 | M32: 0.000119099607 | O32: 0.2365715193 | P32: 0.7633093811 | W32: ='Valeur aliments'!C29 -> Ens. RGA fin épiaison coupe fine 35% ms | X32: ='Valeur aliments'!B29 -> ensi | Y32: 1 | Z32: ='Valeur aliments'!E29 -> 0.78 | AA32: ='Valeur aliments'!F29 -> 0.7 | AB32: 0.74 | AC32: ='Valeur aliments'!H29 -> 70 | AD32: ='Valeur aliments'!I29 -> 64 | AE32: ='Valeur aliments'!N29/100 -> 0.1 | AF32: ='Valeur aliments'!O29 -> 50 | AG32: ='Valeur aliments'!P29 -> 1
B33: Foin Rga 2 em cycle beau tps | G33: 78.42039714 | H33: 0.7 | I33: 78 | J33: 50 | K33: 0.85 | L33: 0.05 | M33: 0.109392989 | O33: 0.2909404899 | P33: 0.5996665211 | W33: ='Valeur aliments'!C30 -> Ens. RGI dé épiaison coupe fine 35% ms | X33: ='Valeur aliments'!B30 -> ensi | Y33: 1 | Z33: ='Valeur aliments'!E30 -> 0.83 | AA33: ='Valeur aliments'!F30 -> 0.77 | AB33: 0.8 | AC33: ='Valeur aliments'!H30 -> 70 | AD33: ='Valeur aliments'!I30 -> 65 | AE33: ='Valeur aliments'!N30/100 -> 0.1 | AF33: ='Valeur aliments'!O30 -> 42 | AG33: ='Valeur aliments'!P30 -> 1
B34: Foin Fétuque 2 em cycle beau tps | G34: 81.17321876 | H34: 0.65 | I34: 84 | J34: 50 | K34: 0.85 | L34: 0.05 | M34: 0.1412322839 | O34: 0.2010599865 | P34: 0.6577077296 | W34: ='Valeur aliments'!C31 -> Ens. RGI fin épiaison coupe fine 35% ms | X34: ='Valeur aliments'!B31 -> ensi | Y34: 1 | Z34: ='Valeur aliments'!E31 -> 0.74 | AA34: ='Valeur aliments'!F31 -> 0.67 | AB34: 0.705 | AC34: ='Valeur aliments'!H31 -> 57 | AD34: ='Valeur aliments'!I31 -> 59 | AE34: ='Valeur aliments'!N31/100 -> 0.1 | AF34: ='Valeur aliments'!O31 -> 50 | AG34: ='Valeur aliments'!P31 -> 1
B35: Foin Dactyle 2 em cycle beau tps | G35: 83.21177512 | H35: 0.655 | I35: 92 | J35: 50 | K35: 0.85 | L35: 0.1 | M35: 0.1668982492 | O35: 0.1822223987 | P35: 0.6508793521 | W35: ='Valeur aliments'!C32 -> Ens. trèfle violet Bourgeon 55% | X35: ='Valeur aliments'!B32 -> ensi | Y35: 1 | Z35: ='Valeur aliments'!E32 -> 0.77 | AA35: ='Valeur aliments'!F32 -> 0.7 | AB35: 0.735 | AC35: ='Valeur aliments'!H32 -> 104 | AD35: ='Valeur aliments'!I32 -> 80 | AE35: ='Valeur aliments'!N32/100 -> 0.1 | AF35: ='Valeur aliments'!O32 -> 50 | AG35: ='Valeur aliments'!P32 -> 1
B36: Foin Rgi 2 em cycle beau tps | G36: 74.9291354 | H36: 0.655 | I36: 76 | J36: 50 | K36: 0.85 | L36: 0.05 | M36: 0.1132240264 | O36: 0.2339910278 | P36: 0.6527849458 | W36: ='Valeur aliments'!C33 -> Foin 75% RGA 25% TB | X36: ='Valeur aliments'!B33 -> foin | Y36: 0.85 | Z36: ='Valeur aliments'!E33 -> 0.7 | AA36: ='Valeur aliments'!F33 -> 0.62 | AB36: 0.66 | AC36: ='Valeur aliments'!H33 -> 74 | AD36: ='Valeur aliments'!I33 -> 76 | AE36: ='Valeur aliments'!N33/100 -> 0.1 | AF36: ='Valeur aliments'!O33 -> 50 | AG36: ='Valeur aliments'!P33 -> 0.85
B37: Foin Luzerne 2 em cycle beau tps | G37: 104.9256081 | H37: 0.62 | I37: 115 | J37: 50 | K37: 0.85 | L37: 0.05 | M37: 0.2522529676 | O37: 0.05847790702 | P37: 0.6892691254 | W37: ='Valeur aliments'!C34 -> foin avoine laiteux pâteux | X37: ='Valeur aliments'!B34 -> foin | Y37: 0.85 | Z37: ='Valeur aliments'!E34 -> 0.67 | AA37: ='Valeur aliments'!F34 -> 0.58 | AB37: 0.625 | AC37: ='Valeur aliments'!H34 -> 42 | AD37: ='Valeur aliments'!I34 -> 62 | AE37: ='Valeur aliments'!N34/100 -> 0.1 | AF37: ='Valeur aliments'!O34 -> 50 | AG37: ='Valeur aliments'!P34 -> 0.85
B38: foin trèfle floraison | G38: 83.89793637 | H38: 0.58 | I38: 91 | J38: 50 | K38: 0.85 | L38: 0.05 | M38: 0.1811108023 | O38: 0.0797570368 | P38: 0.7391321609 | W38: ='Valeur aliments'!C35 -> Foin Dactyle 2 em cycle beau tps | X38: ='Valeur aliments'!B35 -> foin | Y38: 0.85 | Z38: ='Valeur aliments'!E35 -> 0.7 | AA38: ='Valeur aliments'!F35 -> 0.61 | AB38: 0.655 | AC38: ='Valeur aliments'!H35 -> 92 | AD38: ='Valeur aliments'!I35 -> 89 | AE38: ='Valeur aliments'!N35/100 -> 0.1 | AF38: ='Valeur aliments'!O35 -> 50 | AG38: ='Valeur aliments'!P35 -> 0.85
B39: Foin Luzerne floraison 1 cycle beau tps | G39: 96.38610311 | H39: 0.57 | I39: 107 | J39: 50 | K39: 0.85 | L39: 0.05 | M39: 0.2371273175 | O39: 0.01389495415 | P39: 0.7489777284 | W39: ='Valeur aliments'!C36 -> Foin Dactyle épiaison 1 cycle beau tps | X39: ='Valeur aliments'!B36 -> foin | Y39: 0.85 | Z39: ='Valeur aliments'!E36 -> 0.76 | AA39: ='Valeur aliments'!F36 -> 0.68 | AB39: 0.72 | AC39: ='Valeur aliments'!H36 -> 91 | AD39: ='Valeur aliments'!I36 -> 89 | AE39: ='Valeur aliments'!N36/100 -> 0.05 | AF39: ='Valeur aliments'!O36 -> 50 | AG39: ='Valeur aliments'!P36 -> 0.85
B40: Foin 75% RGA 25% TB | G40: 69.6549037 | H40: 0.66 | I40: 74 | J40: 50 | K40: 0.85 | L40: 0.1 | M40: 0.1053436024 | O40: 0.2475088332 | P40: 0.6471475644 | W40: ='Valeur aliments'!C37 -> Foin Dactyle floraison 1 cycle beau tps | X40: ='Valeur aliments'!B37 -> foin | Y40: 0.85 | Z40: ='Valeur aliments'!E37 -> 0.6 | AA40: ='Valeur aliments'!F37 -> 0.51 | AB40: 0.555 | AC40: ='Valeur aliments'!H37 -> 60 | AD40: ='Valeur aliments'!I37 -> 71 | AE40: ='Valeur aliments'!N37/100 -> 0.05 | AF40: ='Valeur aliments'!O37 -> 50 | AG40: ='Valeur aliments'!P37 -> 0.85
W41: ='Valeur aliments'!C38 -> Foin Fétuque 2 em cycle beau tps | X41: ='Valeur aliments'!B38 -> foin | Y41: 0.85 | Z41: ='Valeur aliments'!E38 -> 0.69 | AA41: ='Valeur aliments'!F38 -> 0.61 | AB41: 0.65 | AC41: ='Valeur aliments'!H38 -> 84 | AD41: ='Valeur aliments'!I38 -> 85 | AE41: ='Valeur aliments'!N38/100 -> 0.05 | AF41: ='Valeur aliments'!O38 -> 50 | AG41: ='Valeur aliments'!P38 -> 0.85
W42: ='Valeur aliments'!C39 -> Foin Fétuque épiaison 1 cycle beau tps | X42: ='Valeur aliments'!B39 -> foin | Y42: 0.85 | Z42: ='Valeur aliments'!E39 -> 0.66 | AA42: ='Valeur aliments'!F39 -> 0.58 | AB42: 0.62 | AC42: ='Valeur aliments'!H39 -> 69 | AD42: ='Valeur aliments'!I39 -> 76 | AE42: ='Valeur aliments'!N39/100 -> 0.05 | AF42: ='Valeur aliments'!O39 -> 50 | AG42: ='Valeur aliments'!P39 -> 0.85
W43: ='Valeur aliments'!C40 -> Foin Fétuque floraison 1 cycle beau tps | X43: ='Valeur aliments'!B40 -> foin | Y43: 0.85 | Z43: ='Valeur aliments'!E40 -> 0.57 | AA43: ='Valeur aliments'!F40 -> 0.47 | AB43: 0.52 | AC43: ='Valeur aliments'!H40 -> 59 | AD43: ='Valeur aliments'!I40 -> 68 | AE43: ='Valeur aliments'!N40/100 -> 0.05 | AF43: ='Valeur aliments'!O40 -> 50 | AG43: ='Valeur aliments'!P40 -> 0.85
W44: ='Valeur aliments'!C41 -> Foin Luzerne 2 em cycle beau tps | X44: ='Valeur aliments'!B41 -> foin | Y44: 0.85 | Z44: ='Valeur aliments'!E41 -> 0.67 | AA44: ='Valeur aliments'!F41 -> 0.57 | AB44: 0.62 | AC44: ='Valeur aliments'!H41 -> 115 | AD44: ='Valeur aliments'!I41 -> 90 | AE44: ='Valeur aliments'!N41/100 -> 0.05 | AF44: ='Valeur aliments'!O41 -> 50 | AG44: ='Valeur aliments'!P41 -> 0.85
W45: ='Valeur aliments'!C42 -> Foin Luzerne bougeon 1 cycle beau tps | X45: ='Valeur aliments'!B42 -> foin | Y45: 0.85 | Z45: ='Valeur aliments'!E42 -> 0.67 | AA45: ='Valeur aliments'!F42 -> 0.58 | AB45: 0.625 | AC45: ='Valeur aliments'!H42 -> 114 | AD45: ='Valeur aliments'!I42 -> 91 | AE45: ='Valeur aliments'!N42/100 -> 0.05 | AF45: ='Valeur aliments'!O42 -> 50 | AG45: ='Valeur aliments'!P42 -> 0.85
W46: ='Valeur aliments'!C43 -> Foin Luzerne floraison 1 cycle beau tps | X46: ='Valeur aliments'!B43 -> foin | Y46: 0.85 | Z46: ='Valeur aliments'!E43 -> 0.62 | AA46: ='Valeur aliments'!F43 -> 0.52 | AB46: 0.57 | AC46: ='Valeur aliments'!H43 -> 107 | AD46: ='Valeur aliments'!I43 -> 87 | AE46: ='Valeur aliments'!N43/100 -> 0.05 | AF46: ='Valeur aliments'!O43 -> 50 | AG46: ='Valeur aliments'!P43 -> 0.85
J47: Calculer la densité d'un ensilage d'herbe | W47: ='Valeur aliments'!C44 -> Foin moha | X47: ='Valeur aliments'!B44 -> foin | Y47: 0.85 | Z47: ='Valeur aliments'!E44 -> 0.65 | AA47: ='Valeur aliments'!F44 -> 0.65 | AB47: 0.65 | AC47: ='Valeur aliments'!H44 -> 70 | AD47: ='Valeur aliments'!I44 -> 65 | AE47: ='Valeur aliments'!N44/100 -> 0.05 | AF47: ='Valeur aliments'!O44 -> 50 | AG47: ='Valeur aliments'!P44 -> 0.85
B48: Estimation du rendement | W48: ='Valeur aliments'!C45 -> Foin PP épiaison beau tps | X48: ='Valeur aliments'!B45 -> foin | Y48: 0.85 | Z48: ='Valeur aliments'!E45 -> 0.72 | AA48: ='Valeur aliments'!F45 -> 0.63 | AB48: 0.675 | AC48: ='Valeur aliments'!H45 -> 69 | AD48: ='Valeur aliments'!I45 -> 82 | AE48: ='Valeur aliments'!N45/100 -> 0.05 | AF48: ='Valeur aliments'!O45 -> 50 | AG48: ='Valeur aliments'!P45 -> 0.85
W49: ='Valeur aliments'!C46 -> Foin PP floraison beau tps | X49: ='Valeur aliments'!B46 -> foin | Y49: 0.85 | Z49: ='Valeur aliments'!E46 -> 0.63 | AA49: ='Valeur aliments'!F46 -> 0.53 | AB49: 0.58 | AC49: ='Valeur aliments'!H46 -> 58 | AD49: ='Valeur aliments'!I46 -> 73 | AE49: ='Valeur aliments'!N46/100 -> 0.05 | AF49: ='Valeur aliments'!O46 -> 50 | AG49: ='Valeur aliments'!P46 -> 0.85
J50: hauteur | L50: 1.5 | W50: ='Valeur aliments'!C47 -> Foin Rga 2 em cycle beau tps | X50: ='Valeur aliments'!B47 -> foin | Y50: 0.85 | Z50: ='Valeur aliments'!E47 -> 0.74 | AA50: ='Valeur aliments'!F47 -> 0.66 | AB50: 0.7 | AC50: ='Valeur aliments'!H47 -> 78 | AD50: ='Valeur aliments'!I47 -> 85 | AE50: ='Valeur aliments'!N47/100 -> 0.05 | AF50: ='Valeur aliments'!O47 -> 50 | AG50: ='Valeur aliments'!P47 -> 0.85
J51: Taux MS | L51: 0.35 | W51: ='Valeur aliments'!C48 -> Foin Rga épiaison 1 er cycle beau tps | X51: ='Valeur aliments'!B48 -> foin | Y51: 0.85 | Z51: ='Valeur aliments'!E48 -> 0.81 | AA51: ='Valeur aliments'!F48 -> 0.74 | AB51: 0.775 | AC51: ='Valeur aliments'!H48 -> 75 | AD51: ='Valeur aliments'!I48 -> 87 | AE51: ='Valeur aliments'!N48/100 -> 0.05 | AF51: ='Valeur aliments'!O48 -> 50 | AG51: ='Valeur aliments'!P48 -> 0.85
J52: Silo couloir | L52: non | W52: ='Valeur aliments'!C49 -> Foin Rga floraison 1 er cycle beau tps | X52: ='Valeur aliments'!B49 -> foin | Y52: 0.85 | Z52: ='Valeur aliments'!E49 -> 0.64 | AA52: ='Valeur aliments'!F49 -> 0.55 | AB52: 0.595 | AC52: ='Valeur aliments'!H49 -> 59 | AD52: ='Valeur aliments'!I49 -> 72 | AE52: ='Valeur aliments'!N49/100 -> 0.05 | AF52: ='Valeur aliments'!O49 -> 50 | AG52: ='Valeur aliments'!P49 -> 0.85
J53: Kg MS / m3 | L53: =IF(L52="oui",N53,N53*0.9) -> 192.6 | N53: =IF(L51<=0.35,7*L50+3.7*L51*100+74,12*L50+3.7*((0.34-L51)+0.34)*100+78) -> 214 | W53: ='Valeur aliments'!C50 -> Foin Rgi 2 em cycle beau tps | X53: ='Valeur aliments'!B50 -> foin | Y53: 0.85 | Z53: ='Valeur aliments'!E50 -> 0.7 | AA53: ='Valeur aliments'!F50 -> 0.61 | AB53: 0.655 | AC53: ='Valeur aliments'!H50 -> 76 | AD53: ='Valeur aliments'!I50 -> 82 | AE53: ='Valeur aliments'!N50/100 -> 0.05 | AF53: ='Valeur aliments'!O50 -> 50 | AG53: ='Valeur aliments'!P50 -> 0.85
W54: ='Valeur aliments'!C51 -> Foin Rgi épiaison 1 cycle beau tps | X54: ='Valeur aliments'!B51 -> foin | Y54: 0.85 | Z54: ='Valeur aliments'!E51 -> 0.74 | AA54: ='Valeur aliments'!F51 -> 0.66 | AB54: 0.7 | AC54: ='Valeur aliments'!H51 -> 54 | AD54: ='Valeur aliments'!I51 -> 75 | AE54: ='Valeur aliments'!N51/100 -> 0.05 | AF54: ='Valeur aliments'!O51 -> 50 | AG54: ='Valeur aliments'!P51 -> 0.85
W55: ='Valeur aliments'!C52 -> Foin Rgi floraison 1 cycle beau tps | X55: ='Valeur aliments'!B52 -> foin | Y55: 0.85 | Z55: ='Valeur aliments'!E52 -> 0.61 | AA55: ='Valeur aliments'!F52 -> 0.52 | AB55: 0.565 | AC55: ='Valeur aliments'!H52 -> 36 | AD55: ='Valeur aliments'!I52 -> 61 | AE55: ='Valeur aliments'!N52/100 -> 0.05 | AF55: ='Valeur aliments'!O52 -> 50 | AG55: ='Valeur aliments'!P52 -> 0.85
B56: Ensilage d'herbe Silo couloir | D56: teneur en MS de l'ensilage (%) | I56: L | W56: ='Valeur aliments'!C53 -> foin trèfle bougeon | X56: ='Valeur aliments'!B53 -> foin | Y56: 0.85 | Z56: ='Valeur aliments'!E53 -> 0.67 | AA56: ='Valeur aliments'!F53 -> 0.58 | AB56: 0.625 | AC56: ='Valeur aliments'!H53 -> 110 | AD56: ='Valeur aliments'!I53 -> 89 | AE56: ='Valeur aliments'!N53/100 -> 0.05 | AF56: ='Valeur aliments'!O53 -> 50 | AG56: ='Valeur aliments'!P53 -> 0.85
B57: Densité en kg MS/M3 | D57: 0.25 | E57: 0.3 | F57: 0.35 | G57: 0.4 | L57: H | W57: ='Valeur aliments'!C54 -> foin trèfle floraison | X57: ='Valeur aliments'!B54 -> foin | Y57: 0.85 | Z57: ='Valeur aliments'!E54 -> 0.63 | AA57: ='Valeur aliments'!F54 -> 0.53 | AB57: 0.58 | AC57: ='Valeur aliments'!H54 -> 91 | AD57: ='Valeur aliments'!I54 -> 81 | AE57: ='Valeur aliments'!N54/100 -> 0.05 | AF57: ='Valeur aliments'!O54 -> 50 | AG57: ='Valeur aliments'!P54 -> 0.85
B58: Hauteur du silo (m) | C58: 1 | D58: 173.5 | E58: 192 | F58: 210.5 | G58: 194 | W58: ='Valeur aliments'!C55 -> foin trèfle repousse | X58: ='Valeur aliments'!B55 -> foin | Y58: 0.85 | Z58: ='Valeur aliments'!E55 -> 0.65 | AA58: ='Valeur aliments'!F55 -> 0.56 | AB58: 0.605 | AC58: ='Valeur aliments'!H55 -> 116 | AD58: ='Valeur aliments'!I55 -> 90 | AE58: ='Valeur aliments'!N55/100 -> 0.05 | AF58: ='Valeur aliments'!O55 -> 50 | AG58: ='Valeur aliments'!P55 -> 0.85
C59: 1.5 | D59: 177 | E59: 195.5 | F59: 214 | G59: 200 | W59: ='Valeur aliments'!C56 -> herbe | X59: ='Valeur aliments'!B56 -> 0 | Y59: 1 | Z59: ='Valeur aliments'!E56 -> 0.94 | AA59: ='Valeur aliments'!F56 -> 0.87 | AB59: 0.905 | AC59: ='Valeur aliments'!H56 -> 145 | AD59: ='Valeur aliments'!I56 -> 112 | AE59: ='Valeur aliments'!N56/100 -> 0.15 | AF59: ='Valeur aliments'!O56 -> 50 | AG59: ='Valeur aliments'!P56 -> 1
C60: 2 | D60: 180.5 | E60: 199 | F60: 217.5 | G60: 206 | W60: ='Valeur aliments'!C57 -> Maïs épis complets MS | X60: ='Valeur aliments'!B57 -> 0 | Y60: 1 | Z60: ='Valeur aliments'!E57 -> 1.08 | AA60: ='Valeur aliments'!F57 -> 1.05 | AB60: 1.065 | AC60: ='Valeur aliments'!H57 -> 61 | AD60: ='Valeur aliments'!I57 -> 98 | AE60: ='Valeur aliments'!N57/100 -> 0.05 | AF60: ='Valeur aliments'!O57 -> 50 | AG60: ='Valeur aliments'!P57 -> 1
K61: l | W61: ='Valeur aliments'!C58 -> Maïs sécheresse pauvre en épi | X61: ='Valeur aliments'!B58 -> 0 | Y61: 1 | Z61: ='Valeur aliments'!E58 -> 0.84 | AA61: ='Valeur aliments'!F58 -> 0.73 | AB61: 0.785 | AC61: ='Valeur aliments'!H58 -> 47 | AD61: ='Valeur aliments'!I58 -> 64 | AE61: ='Valeur aliments'!N58/100 -> 0.3 | AF61: ='Valeur aliments'!O58 -> 0 | AG61: ='Valeur aliments'!P58 -> 1
B62: Le cubage d’un silo taupinière se réalise en multipliant la longueur (L) et la largeur à mi-hauteur du silo (l) par la hauteur (H). | W62: ='Valeur aliments'!C59 -> paille blé | X62: ='Valeur aliments'!B59 -> 0 | Y62: 0.88 | Z62: ='Valeur aliments'!E59 -> 0.42 | AA62: ='Valeur aliments'!F59 -> 0.31 | AB62: 0.365 | AC62: ='Valeur aliments'!H59 -> 22 | AD62: ='Valeur aliments'!I59 -> 44 | AE62: ='Valeur aliments'!N59/100 -> 0.05 | AF62: ='Valeur aliments'!O59 -> 25 | AG62: ='Valeur aliments'!P59 -> 0.88
W63: ='Valeur aliments'!C60 -> paille cannes de mais | X63: ='Valeur aliments'!B60 -> 0 | Y63: 0 | Z63: ='Valeur aliments'!E60 -> 0.6 | AA63: ='Valeur aliments'!F60 -> 0.51 | AB63: 0.555 | AC63: ='Valeur aliments'!H60 -> 30 | AD63: ='Valeur aliments'!I60 -> 60 | AE63: ='Valeur aliments'!N60/100 -> 0 | AF63: ='Valeur aliments'!O60 -> 0 | AG63: ='Valeur aliments'!P60 -> 0
W64: ='Valeur aliments'!C61 -> paille luzerne | X64: ='Valeur aliments'!B61 -> foin | Y64: 0.88 | Z64: ='Valeur aliments'!E61 -> 0.45 | AA64: ='Valeur aliments'!F61 -> 0.4 | AB64: 0.425 | AC64: ='Valeur aliments'!H61 -> 55 | AD64: ='Valeur aliments'!I61 -> 45 | AE64: ='Valeur aliments'!N61/100 -> 0.05 | AF64: ='Valeur aliments'!O61 -> 30 | AG64: ='Valeur aliments'!P61 -> 0.88
W65: ='Valeur aliments'!C62 -> Paille orge | X65: ='Valeur aliments'!B62 -> 0 | Y65: 0 | Z65: ='Valeur aliments'!E62 -> 0.44 | AA65: ='Valeur aliments'!F62 -> 0.33 | AB65: 0.385 | AC65: ='Valeur aliments'!H62 -> 24 | AD65: ='Valeur aliments'!I62 -> 46 | AE65: ='Valeur aliments'!N62/100 -> 0 | AF65: ='Valeur aliments'!O62 -> 0 | AG65: ='Valeur aliments'!P62 -> 0
W66: ='Valeur aliments'!C63 -> Paille pois | X66: ='Valeur aliments'!B63 -> 0 | Y66: 0 | Z66: ='Valeur aliments'!E63 -> 0.53 | AA66: ='Valeur aliments'!F63 -> 0.42 | AB66: 0.475 | AC66: ='Valeur aliments'!H63 -> 42 | AD66: ='Valeur aliments'!I63 -> 60 | AE66: ='Valeur aliments'!N63/100 -> 0 | AF66: ='Valeur aliments'!O63 -> 0 | AG66: ='Valeur aliments'!P63 -> 0
W67: ='Valeur aliments'!C64 -> Pommes de terre | X67: ='Valeur aliments'!B64 -> 0 | Y67: 0 | Z67: ='Valeur aliments'!E64 -> 1.2 | AA67: ='Valeur aliments'!F64 -> 1.22 | AB67: 1.21 | AC67: ='Valeur aliments'!H64 -> 63 | AD67: ='Valeur aliments'!I64 -> 103 | AE67: ='Valeur aliments'!N64/100 -> 0 | AF67: ='Valeur aliments'!O64 -> 0 | AG67: ='Valeur aliments'!P64 -> 0
W68: ='Valeur aliments'!C65 -> seigle début épiaison | X68: ='Valeur aliments'!B65 -> 0 | Y68: 0 | Z68: ='Valeur aliments'!E65 -> 0.87 | AA68: ='Valeur aliments'!F65 -> 0.81 | AB68: 0.84 | AC68: ='Valeur aliments'!H65 -> 88 | AD68: ='Valeur aliments'!I65 -> 87 | AE68: ='Valeur aliments'!N65/100 -> 0 | AF68: ='Valeur aliments'!O65 -> 0 | AG68: ='Valeur aliments'!P65 -> 0
W69: ='Valeur aliments'!C66 -> seigle épiaison | X69: ='Valeur aliments'!B66 -> 0 | Y69: 0 | Z69: ='Valeur aliments'!E66 -> 0.84 | AA69: ='Valeur aliments'!F66 -> 0.78 | AB69: 0.81 | AC69: ='Valeur aliments'!H66 -> 84 | AD69: ='Valeur aliments'!I66 -> 84 | AE69: ='Valeur aliments'!N66/100 -> 0 | AF69: ='Valeur aliments'!O66 -> 0 | AG69: ='Valeur aliments'!P66 -> 0
W70: ='Valeur aliments'!C67 -> sorgho fourrager | X70: ='Valeur aliments'!B67 -> 0 | Y70: 1 | Z70: ='Valeur aliments'!F67 -> 0.59 | AA70: ='Valeur aliments'!G67 -> 0 | AB70: 0.295 | AC70: ='Valeur aliments'!I67 -> 66 | AD70: ='Valeur aliments'!J67 -> 1.27 | AE70: ='Valeur aliments'!N67/100 -> 0.05 | AF70: ='Valeur aliments'!O67 -> 25 | AG70: ='Valeur aliments'!P67 -> 1
B71: 1 UGB consomme environ 5000 kg de Matière Sèche (MS) par an soit sans reprise de poids 13.7 kg MS/ j, au printemps avec reprise de poids il consomme 17.2 kgMS | W71: ='Valeur aliments'!C68 -> 0 | X71: ='Valeur aliments'!B68 -> 0 | Y71: 0 | Z71: ='Valeur aliments'!E68 -> 0 | AA71: ='Valeur aliments'!F68 -> 0 | AB71: 0 | AC71: ='Valeur aliments'!H68 -> 0 | AD71: ='Valeur aliments'!I68 -> 0 | AE71: ='Valeur aliments'!N68/100 -> 0 | AF71: ='Valeur aliments'!O68 -> 0 | AG71: ='Valeur aliments'!P68 -> 0
W72: ='Valeur aliments'!C69 -> 0 | X72: ='Valeur aliments'!B69 -> 0 | Y72: 0 | Z72: ='Valeur aliments'!E69 -> 0 | AA72: ='Valeur aliments'!F69 -> 0 | AB72: 0 | AC72: ='Valeur aliments'!H69 -> 0 | AD72: ='Valeur aliments'!I69 -> 0 | AE72: ='Valeur aliments'!N69/100 -> 0 | AF72: ='Valeur aliments'!O69 -> 0 | AG72: ='Valeur aliments'!P69 -> 0
W73: ='Valeur aliments'!C70 -> 0 | X73: ='Valeur aliments'!B70 -> 0 | Y73: =AG73 -> 0 | Z73: ='Valeur aliments'!E70 -> 0 | AA73: ='Valeur aliments'!F70 -> 0 | AB73: =(Z73+AA73)/2 -> 0 | AC73: ='Valeur aliments'!H70 -> 0 | AD73: ='Valeur aliments'!I70 -> 0 | AE73: ='Valeur aliments'!N70/100 -> 0 | AF73: ='Valeur aliments'!O70 -> 0 | AG73: ='Valeur aliments'!P70 -> 0
W74: ='Valeur aliments'!C71 -> 0 | X74: ='Valeur aliments'!B71 -> 0 | Y74: 0 | Z74: ='Valeur aliments'!E71 -> 0 | AA74: ='Valeur aliments'!F71 -> 0 | AB74: 0 | AC74: ='Valeur aliments'!H71 -> 0 | AD74: ='Valeur aliments'!I71 -> 0 | AE74: ='Valeur aliments'!N71/100 -> 0 | AF74: ='Valeur aliments'!O71 -> 0 | AG74: ='Valeur aliments'!P71 -> 0
W75: ='Valeur aliments'!C72 -> 0 | X75: ='Valeur aliments'!B72 -> 0 | Y75: 0 | Z75: ='Valeur aliments'!E72 -> 0 | AA75: ='Valeur aliments'!F72 -> 0 | AB75: 0 | AC75: ='Valeur aliments'!H72 -> 0 | AD75: ='Valeur aliments'!I72 -> 0 | AE75: ='Valeur aliments'!N72/100 -> 0 | AF75: ='Valeur aliments'!O72 -> 0 | AG75: ='Valeur aliments'!P72 -> 0
W76: ='Valeur aliments'!C73 -> 0 | X76: ='Valeur aliments'!B73 -> 0 | Y76: 0 | Z76: ='Valeur aliments'!E73 -> 0 | AA76: ='Valeur aliments'!F73 -> 0 | AB76: 0 | AC76: ='Valeur aliments'!H73 -> 0 | AD76: ='Valeur aliments'!I73 -> 0 | AE76: ='Valeur aliments'!N73/100 -> 0 | AF76: ='Valeur aliments'!O73 -> 0 | AG76: ='Valeur aliments'!P73 -> 0
W77: ='Valeur aliments'!C74 -> 0 | X77: ='Valeur aliments'!B74 -> 0 | Y77: 0 | Z77: ='Valeur aliments'!E74 -> 0 | AA77: ='Valeur aliments'!F74 -> 0 | AB77: 0 | AC77: ='Valeur aliments'!H74 -> 0 | AD77: ='Valeur aliments'!I74 -> 0 | AE77: ='Valeur aliments'!N74/100 -> 0 | AF77: ='Valeur aliments'!O74 -> 0 | AG77: ='Valeur aliments'!P74 -> 0
W78: ='Valeur aliments'!C75 -> 0 | X78: ='Valeur aliments'!B75 -> 0 | Y78: 0 | Z78: ='Valeur aliments'!E75 -> 0 | AA78: ='Valeur aliments'!F75 -> 0 | AB78: 0 | AC78: ='Valeur aliments'!H75 -> 0 | AD78: ='Valeur aliments'!I75 -> 0 | AE78: ='Valeur aliments'!N75/100 -> 0 | AF78: ='Valeur aliments'!O75 -> 0 | AG78: ='Valeur aliments'!P75 -> 0
W79: ='Valeur aliments'!C76 -> 0 | X79: ='Valeur aliments'!B76 -> 0 | Y79: 0 | Z79: ='Valeur aliments'!E76 -> 0 | AA79: ='Valeur aliments'!F76 -> 0 | AB79: 0 | AC79: ='Valeur aliments'!H76 -> 0 | AD79: ='Valeur aliments'!I76 -> 0 | AE79: ='Valeur aliments'!N76/100 -> 0 | AF79: ='Valeur aliments'!O76 -> 0 | AG79: ='Valeur aliments'!P76 -> 0
W80: ='Valeur aliments'!C77 -> 0 | X80: ='Valeur aliments'!B77 -> 0 | Y80: 0 | Z80: ='Valeur aliments'!E77 -> 0 | AA80: ='Valeur aliments'!F77 -> 0 | AB80: 0 | AC80: ='Valeur aliments'!H77 -> 0 | AD80: ='Valeur aliments'!I77 -> 0 | AE80: ='Valeur aliments'!N77/100 -> 0 | AF80: ='Valeur aliments'!O77 -> 0 | AG80: ='Valeur aliments'!P77 -> 0
W81: ='Valeur aliments'!C81 -> 0 | X81: ='Valeur aliments'!B81 -> 0 | Y81: =AG81 -> 0 | Z81: ='Valeur aliments'!E81 -> 0 | AA81: ='Valeur aliments'!F81 -> 0 | AB81: =(Z81+AA81)/2 -> 0 | AC81: ='Valeur aliments'!H81 -> 0 | AD81: ='Valeur aliments'!I81 -> 0 | AE81: ='Valeur aliments'!N81/100 -> 0 | AF81: ='Valeur aliments'!O81 -> 0 | AG81: ='Valeur aliments'!P81 -> 0
W82: ='Valeur aliments'!C82 -> 0 | X82: ='Valeur aliments'!B82 -> 0 | Y82: 0 | Z82: ='Valeur aliments'!E82 -> 0 | AA82: ='Valeur aliments'!F82 -> 0 | AB82: 0 | AC82: ='Valeur aliments'!H82 -> 0 | AD82: ='Valeur aliments'!I82 -> 0 | AE82: ='Valeur aliments'!N82/100 -> 0 | AF82: ='Valeur aliments'!O82 -> 0 | AG82: ='Valeur aliments'!P82 -> 0
W83: ='Valeur aliments'!C83 -> 0 | X83: ='Valeur aliments'!B83 -> 0 | Y83: 0 | Z83: ='Valeur aliments'!E83 -> 0 | AA83: ='Valeur aliments'!F83 -> 0 | AB83: 0 | AC83: ='Valeur aliments'!H83 -> 0 | AD83: ='Valeur aliments'!I83 -> 0 | AE83: ='Valeur aliments'!N83/100 -> 0 | AF83: ='Valeur aliments'!O83 -> 0 | AG83: ='Valeur aliments'!P83 -> 0
W84: ='Valeur aliments'!C84 -> 0 | X84: ='Valeur aliments'!B84 -> 0 | Y84: 0 | Z84: ='Valeur aliments'!E84 -> 0 | AA84: ='Valeur aliments'!F84 -> 0 | AB84: 0 | AC84: ='Valeur aliments'!H84 -> 0 | AD84: ='Valeur aliments'!I84 -> 0 | AE84: ='Valeur aliments'!N84/100 -> 0 | AF84: ='Valeur aliments'!O84 -> 0 | AG84: ='Valeur aliments'!P84 -> 0
W85: ='Valeur aliments'!C85 -> 0 | X85: ='Valeur aliments'!B85 -> 0 | Y85: 0 | Z85: ='Valeur aliments'!E85 -> 0 | AA85: ='Valeur aliments'!F85 -> 0 | AB85: 0 | AC85: ='Valeur aliments'!H85 -> 0 | AD85: ='Valeur aliments'!I85 -> 0 | AE85: ='Valeur aliments'!N85/100 -> 0 | AF85: ='Valeur aliments'!O85 -> 0 | AG85: ='Valeur aliments'!P85 -> 0
W86: ='Valeur aliments'!C86 -> 0 | X86: ='Valeur aliments'!B86 -> 0 | Y86: 0 | Z86: ='Valeur aliments'!E86 -> 0 | AA86: ='Valeur aliments'!F86 -> 0 | AB86: 0 | AC86: ='Valeur aliments'!H86 -> 0 | AD86: ='Valeur aliments'!I86 -> 0 | AE86: ='Valeur aliments'!N86/100 -> 0 | AF86: ='Valeur aliments'!O86 -> 0 | AG86: ='Valeur aliments'!P86 -> 0
W87: ='Valeur aliments'!C87 -> 0 | X87: ='Valeur aliments'!B87 -> 0 | Y87: 0 | Z87: ='Valeur aliments'!E87 -> 0 | AA87: ='Valeur aliments'!F87 -> 0 | AB87: 0 | AC87: ='Valeur aliments'!H87 -> 0 | AD87: ='Valeur aliments'!I87 -> 0 | AE87: ='Valeur aliments'!N87/100 -> 0 | AF87: ='Valeur aliments'!O87 -> 0 | AG87: ='Valeur aliments'!P87 -> 0
W88: ='Valeur aliments'!C88 -> 0 | X88: ='Valeur aliments'!B88 -> 0 | Y88: 0 | Z88: ='Valeur aliments'!E88 -> 0 | AA88: ='Valeur aliments'!F88 -> 0 | AB88: 0 | AC88: ='Valeur aliments'!H88 -> 0 | AD88: ='Valeur aliments'!I88 -> 0 | AE88: ='Valeur aliments'!N88/100 -> 0 | AF88: ='Valeur aliments'!O88 -> 0 | AG88: ='Valeur aliments'!P88 -> 0
W89: ='Valeur aliments'!C89 -> 0 | X89: ='Valeur aliments'!B89 -> 0 | Y89: 0 | Z89: ='Valeur aliments'!E89 -> 0 | AA89: ='Valeur aliments'!F89 -> 0 | AB89: 0 | AC89: ='Valeur aliments'!H89 -> 0 | AD89: ='Valeur aliments'!I89 -> 0 | AE89: ='Valeur aliments'!N89/100 -> 0 | AF89: ='Valeur aliments'!O89 -> 0 | AG89: ='Valeur aliments'!P89 -> 0
W90: ='Valeur aliments'!C90 -> 0 | X90: ='Valeur aliments'!B90 -> 0 | Y90: 0 | Z90: ='Valeur aliments'!E90 -> 0 | AA90: ='Valeur aliments'!F90 -> 0 | AB90: 0 | AC90: ='Valeur aliments'!H90 -> 0 | AD90: ='Valeur aliments'!I90 -> 0 | AE90: ='Valeur aliments'!N90/100 -> 0 | AF90: ='Valeur aliments'!O90 -> 0 | AG90: ='Valeur aliments'!P90 -> 0

Sheet Concentré
B1: Prix de parité d'aliments concentrés
B10: Parité aliment fermier - aliment du commerce
B12: Valeur et prix des aliments de référence, en euros par tonne brute
B13: Aliments de référence | C13: UF | D13: PDIN | E13: prix marché, euros T brute
B14: blé | C14: 1.02 | D14: 70 | E14: 115
B15: soja 48 | C15: 1.06 | D15: 331 | E15: 330
D17: Cout stockage, aplatissage, travail de la céréale / tonne : | E17: 100
B18: Apport de minéraux ; quantité / tonne | D18: 0.12 | E18: Cout minéraux / tonne | G18: 600
C21: Valeurs par kg brut | E21: Prix de l'aliment / T brute | F21: Prix de parité mélange fermier €/T | G21: Quantité équivalente en aliments de référence | J21: 1 kg brut de
J22: =B24 -> Jbexelor
C23: UF | D23: PDIN | G23: blé | H23: soja 48 | J23: est l'équivalent de | L23: 0 | N23: aliment fermier
B24: Jbexelor | C24: 0.85 | D24: 85 | E24: 280 | F24: =G24*($E$14+$E$17*G24)+H24*$E$15+$G$18*$D$18 -> 217.0633937 | G24: =(1-$D$18)*($D$24-331*$C$24/1.02)/(70-331) -> 0.6434227331 | H24: =(1-$D$18)*C24/1.02-G24 -> 0.08991060026 | J24: =G24 -> 0.6434227331 | L24: =IF(E24="","",F24-E24) -> -62.93660627 | N24: =IF(E24="","",B24) -> Jbexelor | R24: Valeurs exprimées par kg brut (données INRA 2002 sauf UNIP pour le lupin)
B25: Jbextra | C25: 0.92 | D25: 110 | E25: 325 | F25: =G25*($E$14+$E$17*G25)+H25*$E$15+$G$18*$D$18 -> 237.6635305 | G25: =(1-$D$18)*($D$25-331*$C$25/1.02)/(70-331) -> 0.6357208324 | H25: =(1-$D$18)*C25/1.02-G25 -> 0.1580046578 | J25: =H24 -> 0.08991060026 | L25: =IF(E25="","",F25-E25) -> -87.33646953 | N25: =IF(E25="","",B25) -> Jbextra | R25: Aliments | S25: Tx MS | T25: ufl | U25: ufv | V25: (Ufl+ Ufv)/2 | W25: pdin | X25: pdie
L26: =MAX(L24:L25) -> -62.93660627 | N26: =IF($L$23=L26,$N$23,IF($L$24=L26,$N$24,IF($L$25=L26,$N$25))) -> Jbexelor | R26: ='Valeur aliments'!T5 -> avoine | S26: ='Valeur aliments'!U5 -> 88.1 | T26: ='Valeur aliments'!V5 -> 0.88 | U26: ='Valeur aliments'!W5 -> 0.8 | V26: ='Valeur aliments'!X5 -> 0.84 | W26: ='Valeur aliments'!Y5 -> 69 | X26: ='Valeur aliments'!Z5 -> 69
C27: l'aliment le plus intéressant est: | D27: =IF(L26<0,"l'aliment fermier",N26) -> l'aliment fermier | F27: ensuite : | G27: =N27 -> Jbexelor | L27: =MEDIAN(L23:L25) -> -62.93660627 | N27: =IF($L$23=L27,$N$23,IF($L$24=L27,$N$24,IF($L$25=L27,$N$25))) -> Jbexelor | R27: ='Valeur aliments'!T6 -> blé | S27: ='Valeur aliments'!U6 -> 86.8 | T27: ='Valeur aliments'!V6 -> 1.18 | U27: ='Valeur aliments'!W6 -> 1.18 | V27: ='Valeur aliments'!X6 -> 1.18 | W27: ='Valeur aliments'!Y6 -> 81 | X27: ='Valeur aliments'!Z6 -> 102
R28: ='Valeur aliments'!T7 -> féverole à fleures colorées | S28: ='Valeur aliments'!U7 -> 86.5 | T28: ='Valeur aliments'!V7 -> 1.2 | U28: ='Valeur aliments'!W7 -> 1.21 | V28: ='Valeur aliments'!X7 -> 1.205 | W28: ='Valeur aliments'!Y7 -> 188 | X28: ='Valeur aliments'!Z7 -> 112
B29: Parité aliments concentrés (fermiers - aliments du commerce) | R29: ='Valeur aliments'!T8 -> Gluten feed | S29: ='Valeur aliments'!U8 -> 88 | T29: ='Valeur aliments'!V8 -> 1.06 | U29: ='Valeur aliments'!W8 -> 1.03 | V29: ='Valeur aliments'!X8 -> 1.045 | W29: ='Valeur aliments'!Y8 -> 144 | X29: ='Valeur aliments'!Z8 -> 115
R30: ='Valeur aliments'!T9 -> Lactosérum | S30: ='Valeur aliments'!U9 -> 6.2 | T30: ='Valeur aliments'!V9 -> 1.15 | U30: ='Valeur aliments'!W9 -> 1.18 | V30: ='Valeur aliments'!X9 -> 1.165 | W30: ='Valeur aliments'!Y9 -> 74 | X30: ='Valeur aliments'!Z9 -> 77
B31: Prix blé / soja (kg brut) | C31: 130 | D31: 330 | F31: Pour saisir un aliment absent de la liste déroulante : cliquer sur cette macro | R31: ='Valeur aliments'!T10 -> lin grain | S31: ='Valeur aliments'!U10 -> 90.3 | T31: ='Valeur aliments'!V10 -> 1.58 | U31: ='Valeur aliments'!W10 -> 1.56 | V31: ='Valeur aliments'!X10 -> 1.57 | W31: ='Valeur aliments'!Y10 -> 161 | X31: ='Valeur aliments'!Z10 -> 84
R32: ='Valeur aliments'!T11 -> lupin blanc | S32: ='Valeur aliments'!U11 -> 88.6 | T32: ='Valeur aliments'!V11 -> 1.33 | U32: ='Valeur aliments'!W11 -> 1.33 | V32: ='Valeur aliments'!X11 -> 1.33 | W32: ='Valeur aliments'!Y11 -> 240 | X32: ='Valeur aliments'!Z11 -> 120
E33: Prix de parité /T brute | F33: Prix de parité /T MS | G33: Quantité équivalente en aliments de référence en kg brut | R33: ='Valeur aliments'!T12 -> luzerne déshydratée 18 % mat | S33: ='Valeur aliments'!U12 -> 91 | T33: ='Valeur aliments'!V12 -> 0.7 | U33: ='Valeur aliments'!W12 -> 0.61 | V33: ='Valeur aliments'!X12 -> 0.655 | W33: ='Valeur aliments'!Y12 -> 120 | X33: ='Valeur aliments'!Z12 -> 104
B34: Valeurs par kg brut | R34: ='Valeur aliments'!T13 -> maïs | S34: ='Valeur aliments'!U13 -> 86.4 | T34: ='Valeur aliments'!V13 -> 1.22 | U34: ='Valeur aliments'!W13 -> 1.23 | V34: ='Valeur aliments'!X13 -> 1.225 | W34: ='Valeur aliments'!Y13 -> 74 | X34: ='Valeur aliments'!Z13 -> 97
R35: ='Valeur aliments'!T14 -> mais humide | S35: ='Valeur aliments'!U14 -> 64 | T35: ='Valeur aliments'!V14 -> 1.2 | U35: ='Valeur aliments'!W14 -> 1.21 | V35: ='Valeur aliments'!X14 -> 1.205 | W35: ='Valeur aliments'!Y14 -> 63 | X35: ='Valeur aliments'!Z14 -> 88
C36: UF | D36: PDIN | G36: blé | H36: Soja 48 | J36: Tx MS | R36: ='Valeur aliments'!T15 -> mais rafle | S36: ='Valeur aliments'!U15 -> 65 | T36: ='Valeur aliments'!V15 -> 1.06 | U36: ='Valeur aliments'!W15 -> 1.06 | V36: ='Valeur aliments'!X15 -> 1.06 | W36: ='Valeur aliments'!Y15 -> 61 | X36: ='Valeur aliments'!Z15 -> 98
B37: orge | C37: =(VLOOKUP(B37,table20,5))*J37/100 -> 0.940695 | D37: =(VLOOKUP(B37,table20,6))*J37/100 -> 68.493 | E37: =G37*$C$31+H37*$D$31 -> 122.9082088 | F37: =E37*100/J37 -> 141.7626399 | G37: =(D37-331*C37/1.02)/(70-331) -> 0.9071714559 | H37: =C37/1.02-G37 -> 0.01507854406 | J37: =VLOOKUP(B37,table20,2) -> 86.7 | R37: ='Valeur aliments'!T16 -> Multitourteaux | S37: ='Valeur aliments'!U16 -> 88 | T37: ='Valeur aliments'!V16 -> 0.95 | U37: ='Valeur aliments'!W16 -> 0.95 | V37: ='Valeur aliments'!X16 -> 0.95 | W37: ='Valeur aliments'!Y16 -> 125.2 | X37: ='Valeur aliments'!Z16 -> 109.2
B38: triticale | C38: =(VLOOKUP(B38,table20,5))*J38/100 -> 1.017045 | D38: =(VLOOKUP(B38,table20,6))*J38/100 -> 62.856 | E38: =G38*$C$31+H38*$D$31 -> 124.3044506 | F38: =E38*100/J38 -> 142.3876869 | G38: =(D38-331*C38/1.02)/(70-331) -> 1.0236976 | H38: =C38/1.02-G38 -> -0.02659465855 | J38: =VLOOKUP(B38,table20,2) -> 87.3 | R38: ='Valeur aliments'!T17 -> Nobia 40 | S38: ='Valeur aliments'!U17 -> 88 | T38: ='Valeur aliments'!V17 -> 0.85 | U38: ='Valeur aliments'!W17 -> 0.85 | V38: ='Valeur aliments'!X17 -> 0.85 | W38: ='Valeur aliments'!Y17 -> 275 | X38: ='Valeur aliments'!Z17 -> 170
B39: maïs | C39: =(VLOOKUP(B39,table20,5))*J39/100 -> 1.0584 | D39: =(VLOOKUP(B39,table20,6))*J39/100 -> 63.936 | E39: =G39*$C$31+H39*$D$31 -> 128.2279919 | F39: =E39*100/J39 -> 148.4120276 | G39: 1.070977688 | H39: -0.0333306288 | J39: 86.4 | R39: ='Valeur aliments'!T18 -> orge | S39: ='Valeur aliments'!U18 -> 86.7 | T39: ='Valeur aliments'!V18 -> 1.09 | U39: ='Valeur aliments'!W18 -> 1.08 | V39: ='Valeur aliments'!X18 -> 1.085 | W39: ='Valeur aliments'!Y18 -> 79 | X39: ='Valeur aliments'!Z18 -> 101
B40: Pulpe betterave déshydratée | C40: 0.877635 | D40: =(VLOOKUP(B40,table20,6))*J40/100 -> 58.806 | E40: 110.7643661 | F40: 124.3146646 | G40: 0.8658818458 | H40: -0.005455375254 | J40: 89.1 | R40: ='Valeur aliments'!T19 -> pois | S40: ='Valeur aliments'!U19 -> 86.4 | T40: ='Valeur aliments'!V19 -> 1.21 | U40: ='Valeur aliments'!W19 -> 1.22 | V40: ='Valeur aliments'!X19 -> 1.215 | W40: ='Valeur aliments'!Y19 -> 150 | X40: ='Valeur aliments'!Z19 -> 120
B41: Son de blé tendre | C41: 0.79261 | D41: 94.068 | E41: 131.4198381 | F41: 150.8838555 | G41: 0.6250640448 | H41: 0.1520045827 | J41: 87.1 | R41: ='Valeur aliments'!T20 -> Pommes de terre | S41: ='Valeur aliments'!U20 -> 20 | T41: ='Valeur aliments'!V20 -> 1.2 | U41: ='Valeur aliments'!W20 -> 1.22 | V41: ='Valeur aliments'!X20 -> 1.21 | W41: ='Valeur aliments'!Y20 -> 63 | X41: ='Valeur aliments'!Z20 -> 103
B42: Nobia 40 | C42: 0.748 | D42: 242 | E42: 241.4380587 | F42: 274.3614304 | G42: 0.002809706258 | H42: 0.7305236271 | J42: 88 | R42: ='Valeur aliments'!T21 -> Pulpe betterave déshydratée | S42: ='Valeur aliments'!U21 -> 89.1 | T42: ='Valeur aliments'!V21 -> 0.99 | U42: ='Valeur aliments'!W21 -> 0.98 | V42: ='Valeur aliments'!X21 -> 0.985 | W42: ='Valeur aliments'!Y21 -> 66 | X42: ='Valeur aliments'!Z21 -> 109
B43: tourteau de colza | C43: 0.82491 | D43: 219.089 | E43: 229.6394422 | F43: 258.8945233 | G43: 0.1862160243 | H43: 0.6225192698 | J43: 88.7 | R43: ='Valeur aliments'!T22 -> Purée de pomme de terre | S43: ='Valeur aliments'!U22 -> 40 | T43: ='Valeur aliments'!V22 -> 1.14 | U43: ='Valeur aliments'!W22 -> 1.15 | V43: ='Valeur aliments'!X22 -> 1.145 | W43: ='Valeur aliments'!Y22 -> 42 | X43: ='Valeur aliments'!Z22 -> 86
B44: tourteau de lin déshuilé | C44: 0.86385 | D44: 226.816 | E44: 238.4756761 | F44: 269.1599053 | G44: 0.2050260311 | H44: 0.6418857336 | J44: 88.6 | R44: ='Valeur aliments'!T23 -> Soja tanné | S44: ='Valeur aliments'!U23 -> 87.8 | T44: ='Valeur aliments'!V23 -> 1.21 | U44: ='Valeur aliments'!W23 -> 1.2 | V44: ='Valeur aliments'!X23 -> 1.205 | W44: ='Valeur aliments'!Y23 -> 443 | X44: ='Valeur aliments'!Z23 -> 426
B45: luzerne déshydratée 18 % mat | C45: =(VLOOKUP(B45,table20,5))*J45/100 -> 0.59605 | D45: 109.2 | E45: 128.3001897 | F45: 140.9892194 | G45: 0.3226975809 | H45: 0.2616651641 | J45: 91 | R45: ='Valeur aliments'!T24 -> Soja 48 | S45: ='Valeur aliments'!U24 -> 87.8 | T45: ='Valeur aliments'!V24 -> 1.21 | U45: ='Valeur aliments'!W24 -> 1.2 | V45: ='Valeur aliments'!X24 -> 1.205 | W45: ='Valeur aliments'!Y24 -> 377 | X45: ='Valeur aliments'!Z24 -> 261
B46: Tournesol non décortiqué | C46: 0.510025 | D46: 178.287 | E46: 174.800339 | F46: 197.0691533 | G46: -0.04896125385 | H46: 0.5489857637 | J46: 88.7 | R46: ='Valeur aliments'!T25 -> Soja 50 | S46: ='Valeur aliments'!U25 -> 87.6 | T46: ='Valeur aliments'!V25 -> 1.21 | U46: ='Valeur aliments'!W25 -> 1.21 | V46: ='Valeur aliments'!X25 -> 1.21 | W46: ='Valeur aliments'!Y25 -> 395 | X46: ='Valeur aliments'!Z25 -> 272
B47: pois | C47: =(VLOOKUP(B47,table20,5))*J47/100 -> 1.04976 | D47: 129.6 | E47: 177.8984178 | F47: 205.9009466 | G47: 0.8086490872 | H47: 0.2205273834 | J47: 86.4 | R47: ='Valeur aliments'!T26 -> soja graine | S47: ='Valeur aliments'!U26 -> 88 | T47: ='Valeur aliments'!V26 -> 1.227272727 | U47: ='Valeur aliments'!W26 -> 1.23 | V47: ='Valeur aliments'!X26 -> 1.228636364 | W47: ='Valeur aliments'!Y26 -> 244.3181818 | X47: ='Valeur aliments'!Z26 -> 86.36363636
B48: féverole à fleures colorées | C48: 1.042325 | D48: 162.62 | E48: 202.6444942 | F48: 234.2710916 | G48: 0.6728914995 | H48: 0.3489957554 | J48: 86.5 | R48: ='Valeur aliments'!T27 -> soja graine extrudée | S48: ='Valeur aliments'!U27 -> 88 | T48: ='Valeur aliments'!V27 -> 1.44 | U48: ='Valeur aliments'!W27 -> 1.44 | V48: ='Valeur aliments'!X27 -> 1.44 | W48: ='Valeur aliments'!Y27 -> 298 | X48: ='Valeur aliments'!Z27 -> 243
B49: Aliments < à 85 % de MS | D49: Valeurs par kg de MS | G49: en kg brut | K49: =C31/0.88 -> 147.7272727 | L49: =D31/0.88 -> 375 | R49: ='Valeur aliments'!T28 -> soja graine toastée | S49: ='Valeur aliments'!U28 -> 88 | T49: ='Valeur aliments'!V28 -> 1.47 | U49: ='Valeur aliments'!W28 -> 1.46 | V49: ='Valeur aliments'!X28 -> 1.465 | W49: ='Valeur aliments'!Y28 -> 269 | X49: ='Valeur aliments'!Z28 -> 177
B50: Fibre de blé | C50: =VLOOKUP(B50,table21,5) -> 0 | D50: =VLOOKUP(B50,table21,6) -> 0 | E50: =F50*J50/100 -> 0 | F50: =(K50*$K$49)+(L50*$L$49) -> 0 | G50: =K50*J50/100 -> 0 | H50: =L50*J50/100 -> 0 | J50: =VLOOKUP(B50,table21,2) -> 50 | K50: =(D50-389*C50/1.2)/(82-389) -> 0 | L50: =(C50/1.2-K50) -> 0 | R50: ='Valeur aliments'!T29 -> Son de blé tendre | S50: ='Valeur aliments'!U29 -> 87.1 | T50: ='Valeur aliments'!V29 -> 0.94 | U50: ='Valeur aliments'!W29 -> 0.88 | V50: ='Valeur aliments'!X29 -> 0.91 | W50: ='Valeur aliments'!Y29 -> 108 | X50: ='Valeur aliments'!Z29 -> 91
R51: ='Valeur aliments'!T30 -> Tournesol non décortiqué | S51: ='Valeur aliments'!U30 -> 88.7 | T51: ='Valeur aliments'!V30 -> 0.63 | U51: ='Valeur aliments'!W30 -> 0.52 | V51: ='Valeur aliments'!X30 -> 0.575 | W51: ='Valeur aliments'!Y30 -> 201 | X51: ='Valeur aliments'!Z30 -> 105
R52: ='Valeur aliments'!T31 -> Tournesol partiellement décortiqué | S52: ='Valeur aliments'!U31 -> 89.7 | T52: ='Valeur aliments'!V31 -> 0.73 | U52: ='Valeur aliments'!W31 -> 0.64 | V52: ='Valeur aliments'!X31 -> 0.685 | W52: ='Valeur aliments'!Y31 -> 245 | X52: ='Valeur aliments'!Z31 -> 128
R53: ='Valeur aliments'!T32 -> tourteau de colza | S53: ='Valeur aliments'!U32 -> 88.7 | T53: ='Valeur aliments'!V32 -> 0.96 | U53: ='Valeur aliments'!W32 -> 0.9 | V53: ='Valeur aliments'!X32 -> 0.93 | W53: ='Valeur aliments'!Y32 -> 247 | X53: ='Valeur aliments'!Z32 -> 155
R54: ='Valeur aliments'!T33 -> tourteau de lin déshuilé | S54: ='Valeur aliments'!U33 -> 88.6 | T54: ='Valeur aliments'!V33 -> 1 | U54: ='Valeur aliments'!W33 -> 0.95 | V54: ='Valeur aliments'!X33 -> 0.975 | W54: ='Valeur aliments'!Y33 -> 256 | X54: ='Valeur aliments'!Z33 -> 202
R55: ='Valeur aliments'!T34 -> tourteau de lin expeller | S55: ='Valeur aliments'!U34 -> 90.4 | T55: ='Valeur aliments'!V34 -> 1.07 | U55: ='Valeur aliments'!W34 -> 1.02 | V55: ='Valeur aliments'!X34 -> 1.045 | W55: ='Valeur aliments'!Y34 -> 244 | X55: ='Valeur aliments'!Z34 -> 190
R56: ='Valeur aliments'!T35 -> triticale | S56: ='Valeur aliments'!U35 -> 87.3 | T56: ='Valeur aliments'!V35 -> 1.16 | U56: ='Valeur aliments'!W35 -> 1.17 | V56: ='Valeur aliments'!X35 -> 1.165 | W56: ='Valeur aliments'!Y35 -> 72 | X56: ='Valeur aliments'!Z35 -> 96
R57: ='Valeur aliments'!T36 -> Urée | S57: ='Valeur aliments'!U36 -> 98 | T57: ='Valeur aliments'!V36 -> 0 | U57: ='Valeur aliments'!W36 -> 0 | V57: ='Valeur aliments'!X36 -> 0 | W57: ='Valeur aliments'!Y36 -> 1472 | X57: ='Valeur aliments'!Z36 -> 0
R58: ='Valeur aliments'!T37 -> 0 | S58: ='Valeur aliments'!U37 -> 0 | T58: ='Valeur aliments'!V37 -> 0 | U58: ='Valeur aliments'!W37 -> 0 | V58: ='Valeur aliments'!X37 -> 0 | W58: ='Valeur aliments'!Y37 -> 0 | X58: ='Valeur aliments'!Z37 -> 0
R59: ='Valeur aliments'!T38 -> 0 | S59: ='Valeur aliments'!U38 -> 0 | T59: ='Valeur aliments'!V38 -> 0 | U59: ='Valeur aliments'!W38 -> 0 | V59: ='Valeur aliments'!X38 -> 0 | W59: ='Valeur aliments'!Y38 -> 0 | X59: ='Valeur aliments'!Z38 -> 0
R60: ='Valeur aliments'!T39 -> 0 | S60: ='Valeur aliments'!U39 -> 0 | T60: ='Valeur aliments'!V39 -> 0 | U60: ='Valeur aliments'!W39 -> 0 | V60: ='Valeur aliments'!X39 -> 0 | W60: ='Valeur aliments'!Y39 -> 0 | X60: ='Valeur aliments'!Z39 -> 0
R61: ='Valeur aliments'!T40 -> 0 | S61: ='Valeur aliments'!U40 -> 0 | T61: ='Valeur aliments'!V40 -> 0 | U61: ='Valeur aliments'!W40 -> 0 | V61: ='Valeur aliments'!X40 -> 0 | W61: ='Valeur aliments'!Y40 -> 0 | X61: ='Valeur aliments'!Z40 -> 0
R62: ='Valeur aliments'!T41 -> 0 | S62: ='Valeur aliments'!U41 -> 0 | T62: ='Valeur aliments'!V41 -> 0 | U62: ='Valeur aliments'!W41 -> 0 | V62: ='Valeur aliments'!X41 -> 0 | W62: ='Valeur aliments'!Y41 -> 0 | X62: ='Valeur aliments'!Z41 -> 0
R63: ='Valeur aliments'!T42 -> 0 | S63: ='Valeur aliments'!U42 -> 0 | T63: ='Valeur aliments'!V42 -> 0 | U63: ='Valeur aliments'!W42 -> 0 | V63: ='Valeur aliments'!X42 -> 0 | W63: ='Valeur aliments'!Y42 -> 0 | X63: ='Valeur aliments'!Z42 -> 0
R64: ='Valeur aliments'!T43 -> ALIMENTS COPRODUITS (riche en eau) | S64: ='Valeur aliments'!U43 -> 0 | T64: ='Valeur aliments'!V43 -> 0 | U64: ='Valeur aliments'!W43 -> 0 | V64: ='Valeur aliments'!X43 -> 0 | W64: ='Valeur aliments'!Y43 -> 0 | X64: ='Valeur aliments'!Z43 -> 0
R65: ='Valeur aliments'!T44 -> 0 | S65: ='Valeur aliments'!U44 -> 0 | T65: ='Valeur aliments'!V44 -> 0 | U65: ='Valeur aliments'!W44 -> 0 | V65: ='Valeur aliments'!X44 -> 0 | W65: ='Valeur aliments'!Y44 -> 0 | X65: ='Valeur aliments'!Z44 -> 0
R66: ='Valeur aliments'!T45 -> Aliments | S66: ='Valeur aliments'!U45 -> % MS | T66: ='Valeur aliments'!V45 -> ufl | U66: ='Valeur aliments'!W45 -> ufv | V66: ='Valeur aliments'!X45 -> 0 | W66: ='Valeur aliments'!Y45 -> pdin | X66: ='Valeur aliments'!Z45 -> pdie
R67: ='Valeur aliments'!T46 -> Fibre de blé | S67: ='Valeur aliments'!U46 -> 50 | T67: ='Valeur aliments'!V46 -> 0 | U67: ='Valeur aliments'!W46 -> 0 | V67: ='Valeur aliments'!X46 -> 0 | W67: ='Valeur aliments'!Y46 -> 0 | X67: ='Valeur aliments'!Z46 -> 0
R68: ='Valeur aliments'!T47 -> Purée de pomme de terre | S68: ='Valeur aliments'!U47 -> 40 | T68: ='Valeur aliments'!V47 -> 1.14 | U68: ='Valeur aliments'!W47 -> 1.15 | V68: ='Valeur aliments'!X47 -> 1.145 | W68: ='Valeur aliments'!Y47 -> 42 | X68: ='Valeur aliments'!Z47 -> 86
R69: ='Valeur aliments'!T48 -> 0 | S69: ='Valeur aliments'!U48 -> 0 | T69: ='Valeur aliments'!V48 -> 0 | U69: ='Valeur aliments'!W48 -> 0 | V69: ='Valeur aliments'!X48 -> 0 | W69: ='Valeur aliments'!Y48 -> 0 | X69: ='Valeur aliments'!Z48 -> 0
R70: ='Valeur aliments'!T49 -> 0 | S70: ='Valeur aliments'!U49 -> 0 | T70: ='Valeur aliments'!V49 -> 0 | U70: ='Valeur aliments'!W49 -> 0 | V70: ='Valeur aliments'!X49 -> 0 | W70: ='Valeur aliments'!Y49 -> 0 | X70: ='Valeur aliments'!Z49 -> 0
R71: ='Valeur aliments'!T50 -> 0 | S71: ='Valeur aliments'!U50 -> 0 | T71: ='Valeur aliments'!V50 -> 0 | U71: ='Valeur aliments'!W50 -> 0 | V71: ='Valeur aliments'!X50 -> 0 | W71: ='Valeur aliments'!Y50 -> 0 | X71: ='Valeur aliments'!Z50 -> 0
R72: ='Valeur aliments'!T51 -> 0 | S72: ='Valeur aliments'!U51 -> 0 | T72: ='Valeur aliments'!V51 -> 0 | U72: ='Valeur aliments'!W51 -> 0 | V72: ='Valeur aliments'!X51 -> 0 | W72: ='Valeur aliments'!Y51 -> 0 | X72: ='Valeur aliments'!Z51 -> 0
R73: ='Valeur aliments'!T52 -> 0 | S73: ='Valeur aliments'!U52 -> 0 | T73: ='Valeur aliments'!V52 -> 0 | U73: ='Valeur aliments'!W52 -> 0 | V73: ='Valeur aliments'!X52 -> 0 | W73: ='Valeur aliments'!Y52 -> 0 | X73: ='Valeur aliments'!Z52 -> 0
R74: ='Valeur aliments'!T53 -> 0 | S74: ='Valeur aliments'!U53 -> 0 | T74: ='Valeur aliments'!V53 -> 0 | U74: ='Valeur aliments'!W53 -> 0 | V74: ='Valeur aliments'!X53 -> 0 | W74: ='Valeur aliments'!Y53 -> 0 | X74: ='Valeur aliments'!Z53 -> 0
R75: ='Valeur aliments'!T54 -> 0 | S75: ='Valeur aliments'!U54 -> 0 | T75: ='Valeur aliments'!V54 -> 0 | U75: ='Valeur aliments'!W54 -> 0 | V75: ='Valeur aliments'!X54 -> 0 | W75: ='Valeur aliments'!Y54 -> 0 | X75: ='Valeur aliments'!Z54 -> 0
N85: 1T de produits remplace (blé 130€, soja 330€)
P86: Blé | Q86: Soja | R86: Prix parité | S86: Marché
O87: =B37 -> orge | P87: =G37 -> 0.9071714559 | Q87: 0.01507854406 | R87: =E37 -> 122.9082088
O88: =B38 -> triticale | P88: 1.0236976 | Q88: -0.02659465855 | R88: =E38 -> 124.3044506
O89: =B39 -> maïs | P89: 1.070977688 | Q89: -0.0333306288 | R89: =E39 -> 128.2279919 | S89: 150
O90: =B40 -> Pulpe betterave déshydratée | P90: =G40 -> 0.8658818458 | Q90: -0.005455375254 | R90: =E40 -> 110.7643661 | S90: 150
O91: Son de blé tendre | P91: =G41 -> 0.6250640448 | Q91: 0.1520045827 | R91: 131.4198381 | S91: 114
N92: 1T de produits remplace (blé 130€, soja 330€)
P93: Blé | Q93: Soja | R93: Prix parité | S93: Marché
O94: =B42 -> Nobia 40 | P94: =G42 -> 0.002809706258 | Q94: 0.7305236271 | R94: =E42 -> 241.4380587
O95: tourteau de colza | P95: 0.1862160243 | Q95: 0.6225192698 | R95: 229.6394422 | S95: 210
O96: tourteau de lin déshuilé | P96: 0.2050260311 | Q96: 0.6418857336 | R96: 238.4756761 | S96: 320
O97: luzerne déshydratée 18 % mat | P97: 0.3226975809 | Q97: 0.2616651641 | R97: 128.3001897 | S97: 170
O98: Tournesol non décortiqué | P98: -0.04896125385 | Q98: 0.5489857637 | R98: 174.800339 | S98: 150
O99: pois | P99: 0.8086490872 | Q99: 0.2205273834 | R99: 177.8984178 | S99: 180
O100: féverole à fleures colorées | P100: 0.6728914995 | Q100: 0.3489957554 | R100: 202.6444942

Sheet Valeur aliments
B1: ALIMENTS FOURRAGES | T1: ALIMENTS CONCENTRES
B3: Code Table INRA | C3: Aliments | D3: % MS | E3: ufl | F3: ufv | H3: pdin | I3: pdie | J3: ueb | K3: p | L3: ca | M3: cb | N3: Perte récolte | O3: Cout récolte TMS | P3: Calcul %MS | S3: Code Table INRA | T3: Aliments | U3: % MS | V3: ufl | W3: ufv | Y3: pdin | Z3: pdie | AA3: ueb | AB3: p | AC3: ca | AD3: cb
C5: Betteraves fourragères | D5: 13 | E5: 1.15 | F5: 1.16 | H5: 62 | I5: 86 | J5: 1.2 | K5: 1.5 | L5: 2.5 | M5: 70 | N5: 7 | O5: 50 | P5: 1 | S5: 20 | T5: avoine | U5: 88.1 | V5: 0.88 | W5: 0.8 | X5: =(V5+W5)/2 -> 0.84 | Y5: 69 | Z5: 69 | AB5: 3.6 | AC5: 1.2 | AD5: 138
C6: choux moelliers | D6: 12.4 | E6: 1.03 | F6: 1.01 | H6: 104 | I6: 98 | J6: 0.97 | K6: 3 | L6: 14.6 | M6: 175 | S6: 50 | T6: blé | U6: 86.8 | V6: 1.18 | W6: 1.18 | X6: 1.18 | Y6: 81 | Z6: 102 | AB6: 3.7 | AC6: 0.8 | AD6: 26
B7: enru | C7: enruba dactyle mi-fané début floraison 1èr cycle | D7: 55 | E7: 0.66 | F7: 0.59 | H7: 70 | I7: 71 | J7: 1.31 | K7: 2.3 | L7: 2.7 | M7: 350 | N7: 10 | O7: 54 | P7: 1 | S7: 30 | T7: féverole à fleures colorées | U7: 86.5 | V7: 1.2 | W7: 1.21 | X7: 1.205 | Y7: 188 | Z7: 112 | AB7: 5.3 | AC7: 1.6 | AD7: 91
B8: enru | C8: enruba dactyle mi-fané fin épiaison 1èr cycle | D8: 55 | E8: 0.72 | F8: 0.64 | H8: 77 | I8: 74 | J8: 1.25 | K8: 2.3 | L8: 2.7 | M8: 333 | N8: 10 | O8: 54 | P8: 1 | S8: 110 | T8: Gluten feed | U8: 88 | V8: 1.06 | W8: 1.03 | X8: 1.045 | Y8: 144 | Z8: 115 | AB8: 10.1 | AC8: 1.8 | AD8: 85
B9: enru | C9: enruba fétuque mi-fané début floraison 1èr cycle | D9: 55 | E9: 0.61 | F9: 0.51 | H9: 64 | I9: 64 | J9: 1.32 | K9: 2.3 | L9: 3.4 | M9: 339 | N9: 10 | O9: 54 | P9: 1 | S9: 10 | T9: Lactosérum | U9: 6.2 | V9: 1.15 | W9: 1.18 | X9: 1.165 | Y9: 74 | Z9: 77 | AB9: 10 | AC9: 19 | AD9: 0
B10: enru | C10: enruba fétuque mi-fané fin épiaison 1èr cycle | D10: 55 | E10: 0.67 | F10: 0.59 | H10: 66 | I10: 68 | J10: 1.26 | K10: 2.3 | L10: 3.4 | M10: 325 | N10: 10 | O10: 54 | P10: 1 | S10: 50 | T10: lin grain | U10: 90.3 | V10: 1.58 | W10: 1.56 | X10: 1.57 | Y10: 161 | Z10: 84 | AB10: 6.8 | AC10: 4.2 | AD10: 102
B11: enru | C11: enruba luzerne mi-fané début floraison 1èr cycle | D11: 55 | E11: 0.67 | F11: 0.57 | H11: 105 | I11: 75 | J11: 1.07 | K11: 2.6 | L11: 12.8 | M11: 346 | N11: 10 | O11: 54 | P11: 1 | S11: 60 | T11: lupin blanc | U11: 88.6 | V11: 1.33 | W11: 1.33 | X11: 1.33 | Y11: 240 | Z11: 120 | AB11: 4.3 | AC11: 3.8 | AD11: 128
B12: enru | C12: enruba luzerne mi-fané fin bourgeonnement 1èr cycle | D12: 55 | E12: 0.71 | F12: 0.62 | H12: 113 | I12: 79 | J12: 1.07 | K12: 2.6 | L12: 12.8 | M12: 337 | N12: 10 | O12: 54 | P12: 1 | S12: 40 | T12: luzerne déshydratée 18 % mat | U12: 91 | V12: 0.7 | W12: 0.61 | X12: 0.655 | Y12: 120 | Z12: 104 | AB12: 2.7 | AC12: 22.3 | AD12: 283
B13: enru | C13: enruba rga mi-fané début floraison 1èr cycle | D13: 55 | E13: 0.7 | F13: 0.62 | H13: 66 | I13: 71 | J13: 1.37 | K13: 2.3 | L13: 5.8 | M13: 332 | N13: 10 | O13: 54 | P13: 1 | S13: 60 | T13: maïs | U13: 86.4 | V13: 1.22 | W13: 1.23 | X13: 1.225 | Y13: 74 | Z13: 97 | AB13: 3 | AC13: 0.5 | AD13: 25
B14: enru | C14: enruba rga mi-fané fin épiaison 1èr cycle | D14: 55 | E14: 0.76 | F14: 0.69 | H14: 68 | I14: 74 | J14: 1.27 | K14: 2.6 | L14: 5.8 | M14: 317 | N14: 10 | O14: 54 | P14: 1 | T14: mais humide | U14: 64 | V14: 1.2 | W14: 1.21 | X14: 1.205 | Y14: 63 | Z14: 88 | AB14: 3 | AC14: 0.5
B15: enru | C15: enruba rgi mi-fané début floraison 1èr cycle | D15: 55 | E15: 0.68 | F15: 0.6 | H15: 46 | I15: 63 | J15: 1.3 | K15: 2.3 | L15: 4.6 | M15: 317 | N15: 10 | O15: 54 | P15: 1 | T15: mais rafle | U15: 65 | V15: 1.06 | W15: 1.06 | X15: 1.06 | Y15: 61 | Z15: 98
B16: enru | C16: enruba rgi mi-fané fin épiaison 1èr cycle | D16: 55 | E16: 0.72 | F16: 0.64 | H16: 52 | I16: 67 | J16: 1.21 | K16: 2.3 | L16: 4.6 | M16: 310 | N16: 10 | O16: 54 | P16: 1 | T16: Multitourteaux | U16: 88 | V16: 0.95 | W16: 0.95 | X16: 0.95 | Y16: =Y8*0.6+Y13*0.2+Y12*0.2 -> 125.2 | Z16: =Z8*0.6+Z13*0.2+Z12*0.2 -> 109.2
B17: ensi | C17: Ens blé laiteux pateux 35% | D17: 35 | E17: 0.64 | F17: 0.55 | H17: 60 | I17: 60 | J17: 1.01 | K17: 2.6 | L17: 4 | M17: 267 | N17: 10 | O17: 42 | P17: 1 | T17: Nobia 40 | U17: 88 | V17: 0.85 | W17: 0.85 | X17: 0.85 | Y17: 275 | Z17: 170 | AB17: 12 | AC17: 30
B18: ensi | C18: Ens mais 30 % ms (pateux) | D18: 30 | E18: 0.9 | F18: 0.8 | H18: 42 | I18: 65 | J18: 1.13 | K18: 1.8 | L18: 2 | M18: 205 | N18: 7 | O18: 30 | P18: 1 | S18: 10 | T18: orge | U18: 86.7 | V18: 1.09 | W18: 1.08 | X18: 1.085 | Y18: 79 | Z18: 101 | AB18: 4 | AC18: 0.8 | AD18: 52
B19: ensi | C19: Ens mais 35 % ms (vitreux) | D19: 35 | E19: 0.91 | F19: 0.81 | H19: 42 | I19: 67 | J19: 1.05 | K19: 1.8 | L19: 2 | M19: 201 | N19: 7 | O19: 30 | P19: 1 | S19: 80 | T19: pois | U19: 86.4 | V19: 1.21 | W19: 1.22 | X19: 1.215 | Y19: 150 | Z19: 120 | AB19: 4.6 | AC19: 1.3 | AD19: 60
B20: ensi | C20: Ens mais 35 % ms (vitreux) % épis >65 | D20: 35 | E20: 0.96 | F20: 0.87 | H20: 50 | I20: 71 | J20: 1 | K20: 1.8 | L20: 2 | M20: 165 | N20: 7 | O20: 30 | P20: 1 | S20: 70 | T20: Pommes de terre | U20: 20 | V20: 1.2 | W20: 1.22 | X20: 1.21 | Y20: 63 | Z20: 103 | AA20: 0.7 | AB20: 2 | AC20: 0.5 | AD20: 26
B21: ensi | C21: Ens orge laiteux pateux 35% | D21: 35 | E21: 0.69 | F21: 0.6 | H21: 50 | I21: 58 | J21: 1.1 | K21: 2.3 | L21: 3.4 | M21: 200 | S21: 170 | T21: Pulpe betterave déshydratée | U21: 89.1 | V21: 0.99 | W21: 0.98 | X21: 0.985 | Y21: 66 | Z21: 109 | AB21: 1 | AC21: 14.8 | AD21: 194
A22: dac | B22: ensi | C22: Ens. Dactyle dé épiaison c. fine 35 % Ms | D22: 33.5 | E22: 0.83 | F22: 0.77 | H22: 100 | I22: 71 | J22: 1.05 | K22: 2.3 | L22: 2.7 | M22: 270 | N22: 7 | O22: 30 | P22: 1 | T22: Purée de pomme de terre | U22: 40 | V22: 1.14 | W22: 1.15 | X22: 1.145 | Y22: 42 | Z22: 86
A23: dac | B23: ensi | C23: Ens. Dactyle fin épiaison c. fine 35 % Ms | D23: 33.5 | E23: 0.73 | F23: 0.65 | H23: 78 | I23: 63 | J23: 1.23 | K23: 2.3 | L23: 2.7 | M23: 325 | N23: 7 | O23: 30 | P23: 1 | S23: 290 | T23: Soja tanné | U23: 87.8 | V23: 1.21 | W23: 1.2 | X23: 1.205 | Y23: 443 | Z23: 426 | AB23: 7.1 | AC23: 3.9 | AD23: 68
A24: fét | B24: ensi | C24: Ens. Fétuque dé épiaison c. fine 35 % Ms | D24: 33.5 | E24: 0.73 | F24: 0.65 | H24: 83 | I24: 63 | J24: 1.13 | K24: 2.6 | L24: 3.4 | M24: 283 | N24: 10 | O24: 42 | P24: 1 | S24: 140 | T24: Soja 48 | U24: 87.8 | V24: 1.21 | W24: 1.2 | X24: 1.205 | Y24: 377 | Z24: 261 | AB24: 7.1 | AC24: 3.9 | AD24: 68
A25: fét | B25: ensi | C25: Ens. Fétuque fin épiaison c. fine 35 % Ms | D25: 33.5 | E25: 0.67 | F25: 0.58 | H25: 69 | I25: 58 | J25: 1.23 | K25: 2.3 | L25: 3.4 | M25: 315 | N25: 10 | O25: 50 | P25: 1 | S25: 150 | T25: Soja 50 | U25: 87.6 | V25: 1.21 | W25: 1.21 | X25: 1.21 | Y25: 395 | Z25: 272 | AB25: 7.1 | AC25: 3.9 | AD25: 44
A26: luz | B26: ensi | C26: Ens. luzerne Bourgeon 55% | D26: 55 | E26: 0.71 | F26: 0.62 | H26: 113 | I26: 79 | J26: 1.07 | K26: 2.6 | L26: 12.8 | M26: 337 | N26: 10 | O26: 50 | P26: 1 | T26: soja graine | U26: 88 | V26: =1.08/0.88 -> 1.227272727 | W26: 1.23 | X26: 1.228636364 | Y26: =215/0.88 -> 244.3181818 | Z26: =76/0.88 -> 86.36363636
B27: ensi | C27: ens. mélange imma triticale pois | D27: 32 | E27: 0.75 | F27: 0.75 | H27: 65 | I27: 70 | N27: 10 | O27: 50 | P27: 1 | T27: soja graine extrudée | U27: 88 | V27: 1.44 | W27: 1.44 | X27: 1.44 | Y27: 298 | Z27: 243
A28: rga | B28: ensi | C28: Ens. RGA dé épiaison coupe fine 35% ms | D28: 33.5 | E28: 0.89 | F28: 0.84 | H28: 90 | I28: 73 | J28: 1.14 | K28: 2.8 | L28: 5.8 | M28: 254 | N28: 10 | O28: 50 | P28: 1 | T28: soja graine toastée | U28: 88 | V28: 1.47 | W28: 1.46 | X28: 1.465 | Y28: 269 | Z28: 177
A29: rga | B29: ensi | C29: Ens. RGA fin épiaison coupe fine 35% ms | D29: 33.5 | E29: 0.78 | F29: 0.7 | H29: 70 | I29: 64 | J29: 1.24 | K29: 2.6 | L29: 5.8 | M29: 305 | N29: 10 | O29: 50 | P29: 1 | S29: 60 | T29: Son de blé tendre | U29: 87.1 | V29: 0.94 | W29: 0.88 | X29: 0.91 | Y29: 108 | Z29: 91 | AB29: 11.4 | AC29: 1.6 | AD29: 105
A30: rgi | B30: ensi | C30: Ens. RGI dé épiaison coupe fine 35% ms | D30: 33.5 | E30: 0.83 | F30: 0.77 | H30: 70 | I30: 65 | J30: 1.08 | K30: 2.6 | L30: 4.6 | M30: 254 | N30: 10 | O30: 42 | P30: 1 | S30: 160 | T30: Tournesol non décortiqué | U30: 88.7 | V30: 0.63 | W30: 0.52 | X30: 0.575 | Y30: 201 | Z30: 105 | AB30: 11.3 | AC30: 4.4 | AD30: 287
A31: rgi | B31: ensi | C31: Ens. RGI fin épiaison coupe fine 35% ms | D31: 33.5 | E31: 0.74 | F31: 0.67 | H31: 57 | I31: 59 | J31: 1.18 | K31: 2.3 | L31: 4.6 | M31: 297 | N31: 10 | O31: 50 | P31: 1 | S31: 170 | T31: Tournesol partiellement décortiqué | U31: 89.7 | V31: 0.73 | W31: 0.64 | X31: 0.685 | Y31: 245 | Z31: 128 | AB31: 12 | AC31: 4.5 | AD31: 236
B32: ensi | C32: Ens. trèfle violet Bourgeon 55% | D32: 55 | E32: 0.77 | F32: 0.7 | H32: 104 | I32: 80 | J32: 1.1 | K32: 2.6 | L32: 11.2 | M32: 290 | N32: 10 | O32: 50 | P32: 1 | S32: 40 | T32: tourteau de colza | U32: 88.7 | V32: 0.96 | W32: 0.9 | X32: 0.93 | Y32: 247 | Z32: 155 | AB32: 12.9 | AC32: 9.4 | AD32: 139
B33: foin | C33: Foin 75% RGA 25% TB | D33: 85 | E33: 0.7 | F33: 0.62 | G33: =(E33+F33)/2 -> 0.66 | H33: 74 | I33: 76 | N33: 10 | O33: 50 | P33: 0.85 | T33: tourteau de lin déshuilé | U33: 88.6 | V33: 1 | W33: 0.95 | X33: 0.975 | Y33: 256 | Z33: 202
B34: foin | C34: foin avoine laiteux pâteux | D34: 85 | E34: 0.67 | F34: 0.58 | H34: 42 | I34: 62 | N34: 10 | O34: 50 | P34: 0.85 | T34: tourteau de lin expeller | U34: 90.4 | V34: 1.07 | W34: 1.02 | X34: 1.045 | Y34: 244 | Z34: 190
A35: dac | B35: foin | C35: Foin Dactyle 2 em cycle beau tps | D35: 85 | E35: 0.7 | F35: 0.61 | H35: 92 | I35: 89 | J35: 1.02 | K35: 2.4 | L35: 3.9 | M35: 323 | N35: 10 | O35: 50 | P35: 0.85 | S35: 100 | T35: triticale | U35: 87.3 | V35: 1.16 | W35: 1.17 | X35: 1.165 | Y35: 72 | Z35: 96 | AB35: 4 | AC35: 0.8
A36: dac | B36: foin | C36: Foin Dactyle épiaison 1 cycle beau tps | D36: 85 | E36: 0.76 | F36: 0.68 | H36: 91 | I36: 89 | J36: 1.08 | K36: 2.2 | L36: 2.3 | M36: 307 | N36: 5 | O36: 50 | P36: 0.85 | S36: 10 | T36: Urée | U36: 98 | X36: 0 | Y36: 1472
A37: dac | B37: foin | C37: Foin Dactyle floraison 1 cycle beau tps | D37: 85 | E37: 0.6 | F37: 0.51 | H37: 60 | I37: 71 | J37: 1.29 | K37: 1.9 | L37: 1.9 | M37: 357 | N37: 5 | O37: 50 | P37: 0.85 | X37: 0
A38: fét | B38: foin | C38: Foin Fétuque 2 em cycle beau tps | D38: 85 | E38: 0.69 | F38: 0.61 | H38: 84 | I38: 85 | J38: 1.06 | K38: 2.9 | L38: 3.5 | M38: 296 | N38: 5 | O38: 50 | P38: 0.85 | X38: 0
A39: fét | B39: foin | C39: Foin Fétuque épiaison 1 cycle beau tps | D39: 85 | E39: 0.66 | F39: 0.58 | H39: 69 | I39: 76 | J39: 1.11 | K39: 2.4 | L39: 2.7 | M39: 316 | N39: 5 | O39: 50 | P39: 0.85
A40: fét | B40: foin | C40: Foin Fétuque floraison 1 cycle beau tps | D40: 85 | E40: 0.57 | F40: 0.47 | H40: 59 | I40: 68 | J40: 1.27 | K40: 2.2 | L40: 2.7 | M40: 348 | N40: 5 | O40: 50 | P40: 0.85
A41: luz | B41: foin | C41: Foin Luzerne 2 em cycle beau tps | D41: 85 | E41: 0.67 | F41: 0.57 | H41: 115 | I41: 90 | J41: 1.04 | K41: 2.2 | L41: 11 | M41: 361 | N41: 5 | O41: 50 | P41: 0.85
A42: luz | B42: foin | C42: Foin Luzerne bougeon 1 cycle beau tps | D42: 85 | E42: 0.67 | F42: 0.58 | H42: 114 | I42: 91 | J42: 1.04 | K42: 2.4 | L42: 12.5 | M42: 351 | N42: 5 | O42: 50 | P42: 0.85
A43: luz | B43: foin | C43: Foin Luzerne floraison 1 cycle beau tps | D43: 85 | E43: 0.62 | F43: 0.52 | H43: 107 | I43: 87 | J43: 1.05 | K43: 2.2 | L43: 12.5 | M43: 374 | N43: 5 | O43: 50 | P43: 0.85 | T43: ALIMENTS COPRODUITS (riche en eau)
B44: foin | C44: Foin moha | E44: 0.65 | F44: 0.65 | H44: 70 | I44: 65 | N44: 5 | O44: 50 | P44: 0.85
B45: foin | C45: Foin PP épiaison beau tps | D45: 85 | E45: 0.72 | F45: 0.63 | H45: 69 | I45: 82 | J45: 1.2 | K45: 3.1 | L45: 4.2 | M45: 333 | N45: 5 | O45: 50 | P45: 0.85 | S45: Code Table INRA | T45: Aliments | U45: % MS | V45: ufl | W45: ufv | Y45: pdin | Z45: pdie | AA45: ueb | AB45: p | AC45: ca | AD45: cb
B46: foin | C46: Foin PP floraison beau tps | D46: 85 | E46: 0.63 | F46: 0.53 | H46: 58 | I46: 73 | J46: 1.31 | K46: 3.1 | L46: 3.9 | M46: 353 | N46: 5 | O46: 50 | P46: 0.85 | T46: Fibre de blé | U46: 50
A47: rga | B47: foin | C47: Foin Rga 2 em cycle beau tps | D47: 85 | E47: 0.74 | F47: 0.66 | H47: 78 | I47: 85 | J47: 1.07 | K47: 2.7 | L47: 4.3 | M47: 297 | N47: 5 | O47: 50 | P47: 0.85 | T47: Purée de pomme de terre | U47: 40 | V47: 1.14 | W47: 1.15 | X47: =(V47+W47)/2 -> 1.145 | Y47: 42 | Z47: 86 | AE47: 105 | AF47: bobineau
A48: rga | B48: foin | C48: Foin Rga épiaison 1 er cycle beau tps | D48: 85 | E48: 0.81 | F48: 0.74 | H48: 75 | I48: 87 | J48: 1.12 | K48: 2.4 | L48: 4.3 | M48: 287 | N48: 5 | O48: 50 | P48: 0.85 | AE48: 1050 | AF48: bobineau
A49: rga | B49: foin | C49: Foin Rga floraison 1 er cycle beau tps | D49: 85 | E49: 0.64 | F49: 0.55 | H49: 59 | I49: 72 | J49: 1.28 | K49: 2.2 | L49: 3.9 | M49: 335 | N49: 5 | O49: 50 | P49: 0.85
A50: rgi | B50: foin | C50: Foin Rgi 2 em cycle beau tps | D50: 85 | E50: 0.7 | F50: 0.61 | H50: 76 | I50: 82 | J50: 1.07 | K50: 2.4 | L50: 3.5 | M50: 310 | N50: 5 | O50: 50 | P50: 0.85
A51: rgi | B51: foin | C51: Foin Rgi épiaison 1 cycle beau tps | D51: 85 | E51: 0.74 | F51: 0.66 | H51: 54 | I51: 75 | J51: 1.08 | K51: 2.2 | L51: 3.5 | M51: 288 | N51: 5 | O51: 50 | P51: 0.85
A52: rgi | B52: foin | C52: Foin Rgi floraison 1 cycle beau tps | D52: 85 | E52: 0.61 | F52: 0.52 | H52: 36 | I52: 61 | J52: 1.26 | K52: 1.9 | L52: 3.5 | M52: 327 | N52: 5 | O52: 50 | P52: 0.85
B53: foin | C53: foin trèfle bougeon | D53: 85 | E53: 0.67 | F53: 0.58 | H53: 110 | I53: 89 | J53: 1.01 | K53: 2.4 | L53: 9.9 | M53: 280 | N53: 5 | O53: 50 | P53: 0.85
B54: foin | C54: foin trèfle floraison | D54: 85 | E54: 0.63 | F54: 0.53 | H54: 91 | I54: 81 | J54: 1.11 | K54: 2.2 | L54: 9.5 | M54: 337 | N54: 5 | O54: 50 | P54: 0.85
B55: foin | C55: foin trèfle repousse | D55: 85 | E55: 0.65 | F55: 0.56 | H55: 116 | I55: 90 | J55: 0.96 | K55: 2.4 | L55: 10.3 | M55: 286 | N55: 5 | O55: 50 | P55: 0.85
C56: herbe | D56: 10 | E56: 0.94 | F56: 0.87 | G56: =(E56+F56)/2 -> 0.905 | H56: 145 | I56: 112 | N56: 15 | O56: 50 | P56: 1
C57: Maïs épis complets MS | D57: 53 | E57: 1.08 | F57: 1.05 | H57: 61 | I57: 98 | J57: 0.9 | K57: 1.8 | L57: 2 | M57: 90 | N57: 5 | O57: 50 | P57: 1
C58: Maïs sécheresse pauvre en épi | D58: 32 | E58: 0.84 | F58: 0.73 | H58: 47 | I58: 64 | J58: 1.16 | K58: 1.8 | L58: 2 | M58: 203 | N58: 30 | O58: 0 | P58: 1
C59: paille blé | D59: 88 | E59: 0.42 | F59: 0.31 | H59: 22 | I59: 44 | J59: 1.8 | K59: 1 | L59: 2 | M59: 420 | N59: 5 | O59: 25 | P59: 0.88
C60: paille cannes de mais | D60: 52.4 | E60: 0.6 | F60: 0.51 | H60: 30 | I60: 60 | J60: 1.3 | K60: 1.5 | L60: 3 | M60: 310
B61: foin | C61: paille luzerne | D61: 88 | E61: 0.45 | F61: 0.4 | H61: 55 | I61: 45 | N61: 5 | O61: 30 | P61: 0.88
C62: Paille orge | D62: 88 | E62: 0.44 | F62: 0.33 | H62: 24 | I62: 46 | J62: 1.8 | K62: 1 | L62: 3.5 | M62: 420
C63: Paille pois | D63: 86 | E63: 0.53 | F63: 0.42 | H63: 42 | I63: 60 | J63: 1.27 | K63: 1 | L63: 5 | M63: 413
C64: Pommes de terre | D64: 20 | E64: 1.2 | F64: 1.22 | H64: 63 | I64: 103 | J64: 0.7 | K64: 2 | L64: 0.5 | M64: 26
C65: seigle début épiaison | E65: 0.87 | F65: 0.81 | H65: 88 | I65: 87 | K65: 3.5 | L65: 4.5
C66: seigle épiaison | E66: 0.84 | F66: 0.78 | H66: 84 | I66: 84 | K66: 3 | L66: 4
C67: sorgho fourrager | D67: 25 | E67: 0.68 | F67: 0.59 | H67: 55 | I67: 66 | J67: 1.27 | N67: 5 | O67: 25 | P67: 1

Sheet Feuil1
H15: Prix | I15: année | K15: 2009 | L15: 2011 | M15: 2014
I16: blé | K16: 297 | L16: 170 | M16: 438
I17: Tourteau de soja 48 | K17: 110 | L17: 310 | M17: 140
I19: UF | J19: PDIN
H20: marché graine de soja
H21: soja graine | I21: 1.0812 | J21: 215 | K21: 217.4796935 | L21: 255.7249042 | M21: 309.1601533
H22: soja graine extrudée | I22: 1.2672 | J22: 262.24 | K22: 262.2392067 | L22: 305.2173991 | M22: 374.0521614
H23: soja graine toastée | I23: 1.2892 | J23: 236.72 | K23: 245.2455743 | L23: 294.3853204 | M23: 346.210154
G25: différence extrusion graine (cout selon quantité 30 à 50€ /T) | K25: =K22-K21 -> 44.75951318 | L25: =L22-L21 -> 49.49249493 | M25: 64.89200811
G26: différence toastage graine cout selon quantité inférieur à l'extrusion, permet de passer des produits plus riche en huile) | K26: =K23-K21 -> 27.76588085 | L26: =L23-L21 -> 38.6604162 | M26: 37.05000075
G28: L'extrusion consiste à presser les graines à l'aide d'une visse. Cela à pour effet de déstructurer le produit et de le chauffer 130 à 160 C, cela provoque une augmentation des valeurs PDIA et surtout PDIE facteur moins limitant
G29: le toastage est une opération de chauffage à haute température, le cout est légèrement inférieur 30€
G30: Ainsi quand le prix du produit est peu élevé le cout du procès ne permet pas de compenser l'amélioration de la valeur du produit
G32: Prix cas types | H32: 2005 | I32: 6 | J32: 7 | K32: 8 | L32: 9 | M32: 10 | N32: 11 | O32: 12 | P32: 13 | Q32: 14 | R32: 15
G33: Blé: | H33: 94 | I33: 108 | J33: 174 | K33: 140 | L33: 110 | M33: 160 | N33: 170 | O33: 210 | P33: 160 | Q33: 140 | R33: 140
G34: soja 48 - 5 10 T | H34: 205 | I34: 200 | J34: 250 | K34: 300 | L34: 297 | M34: 288 | N34: 310 | O34: 437 | P34: 459 | Q34: 438 | R34: 402
